{"text_format":"3","workbook":"xlsx","n_sheets":42,"sheets":["Annex C CATEGORY 1","Annex C CAT 2","Annex C CAT 3","Annex C CAT 4","Annex C CAT 5","Annex C CAT 6","Annex C CAT 7","Annex C CAT 8","Annex C CAT 9","Annex C CAT 10","Annex C CAT 11","Annex C CAT 12","Annex C CAT 13","Annex C CAT 14","Annex D CAT 1","Annex D CAT 2","Annex D CAT 3","Annex D CAT 4","Annex D CAT 5","Annex D CAT 6","Annex D CAT 7","Annex D CAT 8","Annex D CAT 9","Annex D CAT 10","Annex D CAT 11","Annex D CAT 12","Annex D CAT 13","Annex D CAT 14","Annex E CAT 1","Annex E CAT 2","Annex E CAT 3","Annex E CAT 4","Annex E CAT 5","Annex E CAT 6","Annex E CAT 7","Annex E CAT 8","Annex E CAT 9","Annex E CAT 10","Annex E CAT 11","Annex E CAT 12","Annex E CAT 13","Annex E CAT 14"],"not_rendered":{"defined_names":29},"read":"whole","date_system":"1900"}

{"sheet":"Annex C CATEGORY 1","index":0,"n_rows":34,"n_cols":17,"rows_kept":34,"merged":[[3,5,3,15],[7,5,7,8],[7,15,8,16],[8,5,8,11],[9,5,9,8],[10,5,10,8],[11,5,11,8],[15,4,15,5],[16,4,16,5],[17,4,17,5],[18,4,18,5],[19,4,19,5],[20,4,20,5],[21,4,21,5],[22,4,22,5],[23,4,23,5],[24,4,24,5],[25,4,25,5],[27,4,27,5]]}
[]
[{"$nulls":16},"SATS 1286.2011"]
[{"$nulls":3},"Annex C"]
[{"$nulls":5},"\nFAILURE TO FULLY COMPLETE, DECLARE, SIGN & DATE THIS ANNEXURE C WILL RESULT IN THE BIDDER SCORING ZERO POINTS"]
[]
[{"$nulls":3},"Local Content Declaration - Summary Schedule "]
[]
[null,null,"(C1)","Tender No.",null,"HOAC-VAR-52627",{"$nulls":9},"Note: VAT to be excluded from all calculations"]
[null,null,"(C2)","Tender description: ",null,"SUPPLY AND  DELIVERY OF UNIFORM CLOTHING TO TRANSNET RAIL INFRASTRUCTURE MANAGER ON AN “AS AND WHEN REQUIRED BASIS” FOR A PERIOD OF SIXTY (60) MONTHS."]
[null,null,"(C3)","Designated product(s)",null,"Textile, Clothing, Leather and Footwear"]
[null,null,"(C4)","Tender Authority:",null,"TRANSNET RAIL INFRASTRUCTURE MANAGER"]
[null,null,"(C5)","Tendering Entity name:"]
[null,null,"(C6)","Tender Exchange Rate:",null,"Pula",null,"EU",null,"GBP"]
[null,null,"(C7)","Specified local content %"]
[{"$nulls":6},"Calculation of local content",{"$nulls":6},"Tender  summary"]
[{"$nulls":3},"Tender item no's","List of items",null,"Tender price - each \n(excl VAT)","Exempted imported value","Tender value  net of exempted imported  content","Imported value","Local value","Local content % (per item)",null,"Tender Qty","Total tender value","Total exempted imported content","Total Imported content"]
[{"$nulls":3},"(C8)","(C9)",null,"(C10)","(C11)","(C12)","(C13)","(C14)","(C15)",null,"(C16)","(C17)","(C18)","(C19)"]
[{"$nulls":3},"Cat. Item # 27","TROUSERS, UTILITY (Male)",{"$nulls":8},{"v":51500,"d":"51,500 "}]
[{"$nulls":3},"Cat. Item # 28","TROUSERS, UTILITY (Female)",{"$nulls":8},{"v":13000,"d":"13,000 "}]
[{"$nulls":3},"Cat. Item # 29","SHORTS, UNISEX",{"$nulls":8},{"v":11000,"d":"11,000 "}]
[{"$nulls":3},"Cat. Item # 30","SHIRT, UTILITY (Short Sleeve)",{"$nulls":8},{"v":140000,"d":"140,000 "}]
[{"$nulls":3},"Cat. Item # 36","TROUSERS, UTILITY (Hazmat) (Male)",{"$nulls":8},{"v":1000,"d":"1,000 "}]
[{"$nulls":3},"Cat. Item # 37","SLACKS, WOMEN'S",{"$nulls":8},{"v":150,"d":"150 "}]
[{"$nulls":3},"Cat. Item # 38","SHIRT, UTILITY (Open Neck Male)",{"$nulls":8},{"v":950,"d":"950 "}]
[{"$nulls":3},"Cat. Item # 40","TROUSERS, UTILITY (Combat Male)",{"$nulls":8},{"v":1000,"d":"1,000 "}]
[{"$nulls":3},"Cat. Item # 41","TROUSERS, UTILITY (Combat Female)",{"$nulls":8},{"v":300,"d":"300 "}]
[{"$nulls":3},"Cat. Item # 48","SHIRT, UTILITY, Combat",{"$nulls":8},{"v":1200,"d":"1,200 "}]
[{"$nulls":3},"Cat. Item # 23","JACKET, UTILITY",{"$nulls":8},{"v":1820,"d":"1,820 "}]
[{"$nulls":13}," (C20)  Total tender  value"]
[{"$nulls":3},"Signature of tenderer ",{"$nulls":10},"(C21) Total Exempt imported content"]
[{"$nulls":14},"(C22) Total Tender value net of exempt imported content"]
[{"$nulls":15},"(C23) Total Imported content"]
[{"$nulls":15},"(C24) Total local content"]
[{"$nulls":3},"Date: ",{"$nulls":11},"(C25) Average local content % of tender"]

{"sheet":"Annex C CAT 2","index":1,"n_rows":26,"n_cols":17,"rows_kept":26,"merged":[[3,5,3,15],[7,5,7,8],[7,15,8,16],[8,5,8,11],[9,5,9,8],[10,5,10,8],[11,5,11,8],[15,4,15,5],[16,4,16,5]]}
[]
[{"$nulls":16},"SATS 1286.2011"]
[{"$nulls":3},"Annex C"]
[{"$nulls":5},"FAILURE TO FULLY COMPLETE, DECLARE, SIGN & DATE THIS ANNEXURE C WILL RESULT IN THE BIDDER SCORING ZERO POINTS"]
[]
[{"$nulls":3},"Local Content Declaration - Summary Schedule "]
[]
[null,null,"(C1)","Tender No.",null,"HOAC-VAR-52627",{"$nulls":9},"Note: VAT to be excluded from all calculations"]
[null,null,"(C2)","Tender description: ",null,"SUPPLY AND  DELIVERY OF UNIFORM CLOTHING TO TRANSNET RAIL INFRASTRUCTURE MANAGER ON AN “AS AND WHEN REQUIRED BASIS” FOR A PERIOD OF SIXTY (60) MONTHS."]
[null,null,"(C3)","Designated product(s)",null,"Textile, Clothing, Leather and Footwear"]
[null,null,"(C4)","Tender Authority:",null,"TRANSNET RAIL INFRASTRUCTURE MANAGER"]
[null,null,"(C5)","Tendering Entity name:"]
[null,null,"(C6)","Tender Exchange Rate:",null,"Pula",null,"EU",null,"GBP"]
[null,null,"(C7)","Specified local content %"]
[{"$nulls":6},"Calculation of local content",{"$nulls":6},"Tender  summary"]
[{"$nulls":3},"Tender item no's","List of items",null,"Tender price - each \n(excl VAT)","Exempted imported value","Tender value  net of exempted imported  content","Imported value","Local value","Local content % (per item)",null,"Tender Qty","Total tender value","Total exempted imported content","Total Imported content"]
[{"$nulls":3},"(C8)","(C9)",null,"(C10)","(C11)","(C12)","(C13)","(C14)","(C15)",null,"(C16)","(C17)","(C18)","(C19)"]
[{"$nulls":3},"Cat. Item # 6","TROUSERS UTILITYs (Denim)",{"$nulls":8},{"v":70500,"d":"70,500 "}]
[{"$nulls":3},"Cat. Item # 9","TROUSERS UTLTY (Denim)",{"$nulls":8},{"v":24500,"d":"24,500 "}]
[{"$nulls":3},"Cat. Item # 10","SKIRT WOMAN (Denim)",{"$nulls":8},{"v":800,"d":"800 "}]
[{"$nulls":13}," (C20)  Total tender  value"]
[{"$nulls":3},"Signature of tenderer ",{"$nulls":10},"(C21) Total Exempt imported content"]
[{"$nulls":14},"(C22) Total Tender value net of exempt imported content"]
[{"$nulls":15},"(C23) Total Imported content"]
[{"$nulls":15},"(C24) Total local content"]
[{"$nulls":3},"Date: ",{"$nulls":11},"(C25) Average local content % of tender"]

{"sheet":"Annex C CAT 3","index":2,"n_rows":30,"n_cols":17,"rows_kept":30,"merged":[[3,5,3,15],[7,5,7,8],[7,15,8,16],[8,5,8,11],[9,5,9,8],[10,5,10,8],[11,5,11,8],[15,4,15,5],[16,4,16,5],[17,4,17,5],[22,4,22,5],[23,4,23,5]]}
[]
[{"$nulls":16},"SATS 1286.2011"]
[{"$nulls":3},"Annex C"]
[{"$nulls":5},"FAILURE TO FULLY COMPLETE, DECLARE, SIGN & DATE THIS ANNEXURE C WILL RESULT IN THE BIDDER SCORING ZERO POINTS"]
[]
[{"$nulls":3},"Local Content Declaration - Summary Schedule "]
[]
[null,null,"(C1)","Tender No.",null,"HOAC-VAR-52627",{"$nulls":9},"Note: VAT to be excluded from all calculations"]
[null,null,"(C2)","Tender description: ",null,"SUPPLY AND  DELIVERY OF UNIFORM CLOTHING TO TRANSNET RAIL INFRASTRUCTURE MANAGER ON AN “AS AND WHEN REQUIRED BASIS” FOR A PERIOD OF SIXTY (60) MONTHS."]
[null,null,"(C3)","Designated product(s)",null,"Textile, Clothing, Leather and Footwear"]
[null,null,"(C4)","Tender Authority:",null,"TRANSNET RAIL INFRASTRUCTURE MANAGER"]
[null,null,"(C5)","Tendering Entity name:"]
[null,null,"(C6)","Tender Exchange Rate:",null,"Pula",null,"EU",null,"GBP"]
[null,null,"(C7)","Specified local content %"]
[{"$nulls":6},"Calculation of local content",{"$nulls":6},"Tender  summary"]
[{"$nulls":3},"Tender item no's","List of items",null,"Tender price - each \n(excl VAT)","Exempted imported value","Tender value  net of exempted imported  content","Imported value","Local value","Local content % (per item)",null,"Tender Qty","Total tender value","Total exempted imported content","Total Imported content"]
[{"$nulls":3},"(C8)","(C9)",null,"(C10)","(C11)","(C12)","(C13)","(C14)","(C15)",null,"(C16)","(C17)","(C18)","(C19)"]
[{"$nulls":3},"Cat. Item # 4","CAP UTILITY",{"$nulls":8},{"v":46500,"d":"46,500 "}]
[{"$nulls":3},"Cat. Item # 22","HAT, BUSH (FLOPPY)",{"$nulls":8},{"v":15000,"d":"15,000 "}]
[{"$nulls":3},"Cat. Item # 33","CAP, UTILITY (Base Ball)",{"$nulls":8},{"v":22500,"d":"22,500 "}]
[{"$nulls":3},"Cat. Item # 43","CAP, UTILITY (Base Ball)",{"$nulls":8},{"v":20000,"d":"20,000 "}]
[{"$nulls":3},"Cat. Item # 25","CAP UTILITY (Base Ball)",{"$nulls":8},{"v":3962,"d":"3,962 "}]
[{"$nulls":3},"Cat. Item # 26","HEAD DRESS, Beret",{"$nulls":8},{"v":321,"d":"321 "}]
[{"$nulls":3},"Cat. Item # 36","LADIES FELT HAT",{"$nulls":8},{"v":829,"d":"829 "}]
[{"$nulls":13}," (C20)  Total tender  value"]
[{"$nulls":3},"Signature of tenderer ",{"$nulls":10},"(C21) Total Exempt imported content"]
[{"$nulls":14},"(C22) Total Tender value net of exempt imported content"]
[{"$nulls":15},"(C23) Total Imported content"]
[{"$nulls":15},"(C24) Total local content"]
[{"$nulls":3},"Date: ",{"$nulls":11},"(C25) Average local content % of tender"]

{"sheet":"Annex C CAT 4","index":3,"n_rows":26,"n_cols":17,"rows_kept":26,"merged":[[3,5,3,15],[7,5,7,8],[7,15,8,16],[8,5,8,11],[9,5,9,8],[10,5,10,8],[11,5,11,8],[15,4,15,5],[16,4,16,5],[17,4,17,5],[18,4,18,5],[19,4,19,5]]}
[]
[{"$nulls":16},"SATS 1286.2011"]
[{"$nulls":3},"Annex C"]
[{"$nulls":5},"FAILURE TO FULLY COMPLETE, DECLARE, SIGN & DATE THIS ANNEXURE C WILL RESULT IN THE BIDDER SCORING ZERO POINTS"]
[]
[{"$nulls":3},"Local Content Declaration - Summary Schedule "]
[]
[null,null,"(C1)","Tender No.",null,"HOAC-VAR-52627",{"$nulls":9},"Note: VAT to be excluded from all calculations"]
[null,null,"(C2)","Tender description: ",null,"SUPPLY AND  DELIVERY OF UNIFORM CLOTHING TO TRANSNET RAIL INFRASTRUCTURE MANAGER ON AN “AS AND WHEN REQUIRED BASIS” FOR A PERIOD OF SIXTY (60) MONTHS."]
[null,null,"(C3)","Designated product(s)",null,"Textile, Clothing, Leather and Footwear"]
[null,null,"(C4)","Tender Authority:",null,"TRANSNET RAIL INFRASTRUCTURE MANAGER"]
[null,null,"(C5)","Tendering Entity name:"]
[null,null,"(C6)","Tender Exchange Rate:",null,"Pula",null,"EU",null,"GBP"]
[null,null,"(C7)","Specified local content %"]
[{"$nulls":6},"Calculation of local content",{"$nulls":6},"Tender  summary"]
[{"$nulls":3},"Tender item no's","List of items",null,"Tender price - each \n(excl VAT)","Exempted imported value","Tender value  net of exempted imported  content","Imported value","Local value","Local content % (per item)",null,"Tender Qty","Total tender value","Total exempted imported content","Total Imported content"]
[{"$nulls":3},"(C8)","(C9)",null,"(C10)","(C11)","(C12)","(C13)","(C14)","(C15)",null,"(C16)","(C17)","(C18)","(C19)"]
[{"$nulls":3},"Cat. Item # 5","SOCKS (Half Hose)",{"$nulls":8},{"v":250000,"d":"250,000 "}]
[{"$nulls":3},"Cat. Item # 21","SOCKS (Quarter Hose)",{"$nulls":8},{"v":205500,"d":"205,500 "}]
[{"$nulls":3},"Cat. Item # 32","SOCKS (Anklet)",{"$nulls":8},{"v":74000,"d":"74,000 "}]
[{"$nulls":13}," (C20)  Total tender  value"]
[{"$nulls":3},"Signature of tenderer ",{"$nulls":10},"(C21) Total Exempt imported content"]
[{"$nulls":14},"(C22) Total Tender value net of exempt imported content"]
[{"$nulls":15},"(C23) Total Imported content"]
[{"$nulls":15},"(C24) Total local content"]
[{"$nulls":3},"Date: ",{"$nulls":11},"(C25) Average local content % of tender"]

{"sheet":"Annex C CAT 5","index":4,"n_rows":28,"n_cols":17,"rows_kept":28,"merged":[[3,5,3,15],[7,5,7,8],[7,15,8,16],[8,5,8,11],[9,5,9,8],[10,5,10,8],[11,5,11,8],[15,4,15,5],[16,4,16,5],[17,4,17,5],[18,4,18,5],[20,4,20,5],[21,4,21,5]]}
[]
[{"$nulls":16},"SATS 1286.2011"]
[{"$nulls":3},"Annex C"]
[{"$nulls":5},"FAILURE TO FULLY COMPLETE, DECLARE, SIGN & DATE THIS ANNEXURE C WILL RESULT IN THE BIDDER SCORING ZERO POINTS"]
[]
[{"$nulls":3},"Local Content Declaration - Summary Schedule "]
[]
[null,null,"(C1)","Tender No.",null,"HOAC-VAR-52627",{"$nulls":9},"Note: VAT to be excluded from all calculations"]
[null,null,"(C2)","Tender description: ",null,"SUPPLY AND  DELIVERY OF UNIFORM CLOTHING TO TRANSNET RAIL INFRASTRUCTURE MANAGER ON AN “AS AND WHEN REQUIRED BASIS” FOR A PERIOD OF SIXTY (60) MONTHS."]
[null,null,"(C3)","Designated product(s)",null,"Textile, Clothing, Leather and Footwear"]
[null,null,"(C4)","Tender Authority:",null,"TRANSNET RAIL INFRASTRUCTURE MANAGER"]
[null,null,"(C5)","Tendering Entity name:"]
[null,null,"(C6)","Tender Exchange Rate:",null,"Pula",null,"EU",null,"GBP"]
[null,null,"(C7)","Specified local content %"]
[{"$nulls":6},"Calculation of local content",{"$nulls":6},"Tender  summary"]
[{"$nulls":3},"Tender item no's","List of items",null,"Tender price - each \n(excl VAT)","Exempted imported value","Tender value  net of exempted imported  content","Imported value","Local value","Local content % (per item)",null,"Tender Qty","Total tender value","Total exempted imported content","Total Imported content"]
[{"$nulls":3},"(C8)","(C9)",null,"(C10)","(C11)","(C12)","(C13)","(C14)","(C15)",null,"(C16)","(C17)","(C18)","(C19)"]
[{"$nulls":3},"Cat. Item # 18","SUIT, RAINWEAR","SUIT, RAINWEAR",{"$nulls":7},{"v":31500,"d":"31,500 "}]
[{"$nulls":3},"Cat. Item # 23","VEST, HIGH VISIBILITY","VEST, HIGH VISIBILITY",{"$nulls":7},{"v":16500,"d":"16,500 "}]
[{"$nulls":3},"Cat.Item # 54","VEST, HIGH VISIBILITY",{"$nulls":8},{"v":126,"d":"126 "}]
[{"$nulls":3},"Cat. Item # 45","JACKET, WET WEATHER, PARKA","JACKET, WET WEATHER, PARKA",{"$nulls":7},{"v":50,"d":"50 "}]
[{"$nulls":3},"Cat. Item # 55","RAIN SUIT UNISEX [RNC]","RAIN SUIT UNISEX [RNC]",{"$nulls":7},{"v":22000,"d":"22,000 "}]
[{"$nulls":13}," (C20)  Total tender  value"]
[{"$nulls":3},"Signature of tenderer ",{"$nulls":10},"(C21) Total Exempt imported content"]
[{"$nulls":14},"(C22) Total Tender value net of exempt imported content"]
[{"$nulls":15},"(C23) Total Imported content"]
[{"$nulls":15},"(C24) Total local content"]
[{"$nulls":3},"Date: ",{"$nulls":11},"(C25) Average local content % of tender"]

{"sheet":"Annex C CAT 6","index":5,"n_rows":24,"n_cols":17,"rows_kept":24,"merged":[[3,5,3,15],[7,5,7,8],[7,15,8,16],[8,5,8,11],[9,5,9,8],[10,5,10,8],[11,5,11,8],[15,4,15,5],[16,4,16,5],[17,4,17,5]]}
[]
[{"$nulls":16},"SATS 1286.2011"]
[{"$nulls":3},"Annex C"]
[{"$nulls":5},"FAILURE TO FULLY COMPLETE, DECLARE, SIGN & DATE THIS ANNEXURE C WILL RESULT IN THE BIDDER SCORING ZERO POINTS"]
[]
[{"$nulls":3},"Local Content Declaration - Summary Schedule "]
[]
[null,null,"(C1)","Tender No.",null,"HOAC-VAR-52627",{"$nulls":9},"Note: VAT to be excluded from all calculations"]
[null,null,"(C2)","Tender description: ",null,"SUPPLY AND  DELIVERY OF UNIFORM CLOTHING TO TRANSNET RAIL INFRASTRUCTURE MANAGER ON AN “AS AND WHEN REQUIRED BASIS” FOR A PERIOD OF SIXTY (60) MONTHS."]
[null,null,"(C3)","Designated product(s)",null,"Textile, Clothing, Leather and Footwear"]
[null,null,"(C4)","Tender Authority:",null,"TRANSNET RAIL INFRASTRUCTURE MANAGER"]
[null,null,"(C5)","Tendering Entity name:"]
[null,null,"(C6)","Tender Exchange Rate:",null,"Pula",null,"EU",null,"GBP"]
[null,null,"(C7)","Specified local content %"]
[{"$nulls":6},"Calculation of local content",{"$nulls":6},"Tender  summary"]
[{"$nulls":3},"Tender item no's","List of items",null,"Tender price - each \n(excl VAT)","Exempted imported value","Tender value  net of exempted imported  content","Imported value","Local value","Local content % (per item)",null,"Tender Qty","Total tender value","Total exempted imported content","Total Imported content"]
[{"$nulls":3},"(C8)","(C9)",null,"(C10)","(C11)","(C12)","(C13)","(C14)","(C15)",null,"(C16)","(C17)","(C18)","(C19)"]
[{"$nulls":3},"Cat. Item # 12","PANTYHOSE, LADIES",{"$nulls":8},{"v":22000,"d":"22,000 "}]
[{"$nulls":13}," (C20)  Total tender  value",{"$f":"SUM(O18:O18)","v":{"v":0,"d":"R  0"}}]
[{"$nulls":3},"Signature of tenderer",{"$nulls":10},"(C21) Total Exempt imported content",{"$f":"SUM(P18:P19)","v":{"v":0,"d":"R  0"}}]
[{"$nulls":14},"(C22) Total Tender value net of exempt imported content",{"$f":"+O19-P20","v":{"v":0,"d":"R  0"}}]
[{"$nulls":15},"(C23) Total Imported content",{"$f":"SUM(Q18:Q18)","v":{"v":0,"d":"R  0"}}]
[{"$nulls":15},"(C24) Total local content",{"$f":"+P21-Q22","v":{"v":0,"d":"R  0"}}]
[{"$nulls":3},"Date: ",{"$nulls":11},"(C25) Average local content % of tender"]

{"sheet":"Annex C CAT 7","index":6,"n_rows":28,"n_cols":17,"rows_kept":28,"merged":[[3,5,3,15],[7,5,7,8],[7,15,8,16],[8,5,8,11],[9,5,9,8],[10,5,10,8],[11,5,11,8],[15,4,15,5],[16,4,16,5],[17,4,17,5],[18,4,18,5],[19,4,19,5],[20,4,20,5],[21,4,21,5]]}
[]
[{"$nulls":16},"SATS 1286.2011"]
[{"$nulls":3},"Annex C"]
[{"$nulls":5},"FAILURE TO FULLY COMPLETE, DECLARE, SIGN & DATE THIS ANNEXURE C WILL RESULT IN THE BIDDER SCORING ZERO POINTS"]
[]
[{"$nulls":3},"Local Content Declaration - Summary Schedule "]
[]
[null,null,"(C1)","Tender No.",null,"HOAC-VAR-52627",{"$nulls":9},"Note: VAT to be excluded from all calculations"]
[null,null,"(C2)","Tender description: ",null,"SUPPLY AND  DELIVERY OF UNIFORM CLOTHING TO TRANSNET RAIL INFRASTRUCTURE MANAGER ON AN “AS AND WHEN REQUIRED BASIS” FOR A PERIOD OF SIXTY (60) MONTHS."]
[null,null,"(C3)","Designated product(s)",null,"Textile, Clothing, Leather and Footwear"]
[null,null,"(C4)","Tender Authority:",null,"TRANSNET RAIL INFRASTRUCTURE MANAGER"]
[null,null,"(C5)","Tendering Entity name:"]
[null,null,"(C6)","Tender Exchange Rate:",null,"Pula",null,"EU",null,"GBP"]
[null,null,"(C7)","Specified local content %"]
[{"$nulls":6},"Calculation of local content",{"$nulls":6},"Tender  summary"]
[{"$nulls":3},"Tender item no's","List of items",null,"Tender price - each \n(excl VAT)","Exempted imported value","Tender value  net of exempted imported  content","Imported value","Local value","Local content % (per item)",null,"Tender Qty","Total tender value","Total exempted imported content","Total Imported content"]
[{"$nulls":3},"(C8)","(C9)",null,"(C10)","(C11)","(C12)","(C13)","(C14)","(C15)",null,"(C16)","(C17)","(C18)","(C19)"]
[{"$nulls":3},"Cat. Item # 7","SHOES, UTILITY (medium fit)","SHOES, UTILITY (medium fit)",{"$nulls":7},{"v":11200,"d":"11,200 "}]
[{"$nulls":3},"Cat. Item # 8","SHOES, UTILITY (wide fit)",{"$nulls":8},{"v":2000,"d":"2,000 "}]
[{"$nulls":3},"Cat. Item # 11","SHOES, WOMENS",{"$nulls":8},{"v":2200,"d":"2,200 "}]
[{"$nulls":3},"Cat. Item # 52","SHOES,UTILITY, Male","SHOES,UTILITY, Male",{"$nulls":7},{"v":1273,"d":"1,273 "}]
[{"$nulls":3},"Cat. Item # 53","SHOES, WOMENS","SHOES, WOMENS",{"$nulls":7},{"v":2752,"d":"2,752 "}]
[{"$nulls":13}," (C20)  Total tender  value"]
[{"$nulls":3},"Signature of tenderer ",{"$nulls":10},"(C21) Total Exempt imported content"]
[{"$nulls":14},"(C22) Total Tender value net of exempt imported content"]
[{"$nulls":15},"(C23) Total Imported content"]
[{"$nulls":15},"(C24) Total local content"]
[{"$nulls":3},"Date: ",{"$nulls":11},"(C25) Average local content % of tender"]

{"sheet":"Annex C CAT 8","index":7,"n_rows":34,"n_cols":17,"rows_kept":34,"merged":[[3,5,3,15],[7,5,7,8],[7,15,8,16],[8,5,8,11],[9,5,9,8],[10,5,10,8],[11,5,11,8],[15,4,15,5],[16,4,16,5],[17,4,17,5],[19,4,19,5],[20,4,20,5],[21,4,21,5],[22,4,22,5],[23,4,23,5],[24,4,24,5],[25,4,25,5],[26,4,26,5],[27,4,27,5]]}
[]
[{"$nulls":16},"SATS 1286.2011"]
[{"$nulls":3},"Annex C"]
[{"$nulls":5},"FAILURE TO FULLY COMPLETE, DECLARE, SIGN & DATE THIS ANNEXURE C WILL RESULT IN THE BIDDER SCORING ZERO POINTS"]
[]
[{"$nulls":3},"Local Content Declaration - Summary Schedule "]
[]
[null,null,"(C1)","Tender No.",null,"HOAC-VAR-52627",{"$nulls":9},"Note: VAT to be excluded from all calculations"]
[null,null,"(C2)","Tender description: ",null,"SUPPLY AND  DELIVERY OF UNIFORM CLOTHING TO TRANSNET RAIL INFRASTRUCTURE MANAGER ON AN “AS AND WHEN REQUIRED BASIS” FOR A PERIOD OF SIXTY (60) MONTHS."]
[null,null,"(C3)","Designated product(s)",null,"Textile, Clothing, Leather and Footwear"]
[null,null,"(C4)","Tender Authority:",null,"TRANSNET RAIL INFRASTRUCTURE MANAGER"]
[null,null,"(C5)","Tendering Entity name:"]
[null,null,"(C6)","Tender Exchange Rate:",null,"Pula",null,"EU",null,"GBP"]
[null,null,"(C7)","Specified local content %"]
[{"$nulls":6},"Calculation of local content",{"$nulls":6},"Tender  summary"]
[{"$nulls":3},"Tender item no's","List of items",null,"Tender price - each \n(excl VAT)","Exempted imported value","Tender value  net of exempted imported  content","Imported value","Local value","Local content % (per item)",null,"Tender Qty","Total tender value","Total exempted imported content","Total Imported content"]
[{"$nulls":3},"(C8)","(C9)",null,"(C10)","(C11)","(C12)","(C13)","(C14)","(C15)",null,"(C16)","(C17)","(C18)","(C19)"]
[{"$nulls":3},"Cat. Item # 35","INSIGNIA, GRADE, SHOULDER LOOP SLEEVE",{"$nulls":8},{"v":1500,"d":"1,500 "}]
[{"$nulls":3},"Cat. Item # 44","BADGE, IDENTIFICATION (Hazmat)",{"$nulls":8},{"v":50,"d":"50 "}]
[{"$nulls":3},"Cat. Item # 51","INSIGNIA, GRADE, SHOULDER LOOP SLEEVE",{"$nulls":8},{"v":50,"d":"50 "}]
[{"$nulls":3},"Cat. Item # 9","BADGE, METAL",{"$nulls":8},{"v":46,"d":"46 "}]
[{"$nulls":3},"Cat. Item # 10","RUBBERISED EPAULETTES",{"$nulls":8},{"v":937,"d":"937 "}]
[{"$nulls":3},"Cat. Item # 30","BADGE, NAME",{"$nulls":8},{"v":419,"d":"419 "}]
[{"$nulls":3},"Cat. Item # 31","BADGE, CAP, HAT & BERET",{"$nulls":8},{"v":445,"d":"445 "}]
[{"$nulls":3},"Cat. Item # 32","RING, SCARF",{"$nulls":8},{"v":571,"d":"571 "}]
[{"$nulls":3},"Cat. Item # 34","RUBBERISED NAME BADGES",{"$nulls":8},{"v":4883,"d":"4,883 "}]
[{"$nulls":3},"Cat. Item # 37","LANYARDS, SINGLE CORD, BLACK",{"$nulls":8},{"v":532,"d":"532 "}]
[{"$nulls":3},"Cat. Item # 38","WHISTLE, NICKLE PLAITED.",{"$nulls":8},{"v":608,"d":"608 "}]
[{"$nulls":13}," (C20)  Total tender  value",{"$f":"SUM(O18:O28)","v":{"v":0,"d":"R  0"}}]
[{"$nulls":3},"Signature of tenderer",{"$nulls":10},"(C21) Total Exempt imported content",{"$f":"SUM(P18:P29)","v":{"v":0,"d":"R  0"}}]
[{"$nulls":14},"(C22) Total Tender value net of exempt imported content",{"$f":"+O29-P30","v":{"v":0,"d":"R  0"}}]
[{"$nulls":15},"(C23) Total Imported content",{"$f":"SUM(Q18:Q28)","v":{"v":0,"d":"R  0"}}]
[{"$nulls":15},"(C24) Total local content",{"$f":"+P31-Q32","v":{"v":0,"d":"R  0"}}]
[{"$nulls":3},"Date: ",{"$nulls":11},"(C25) Average local content % of tender"]

{"sheet":"Annex C CAT 9","index":8,"n_rows":28,"n_cols":17,"rows_kept":28,"merged":[[3,5,3,15],[7,5,7,8],[7,15,8,16],[8,5,8,11],[9,5,9,8],[10,5,10,8],[11,5,11,8],[15,4,15,5],[16,4,16,5],[17,4,17,5],[18,4,18,5],[19,4,19,5],[20,4,20,5],[21,4,21,5]]}
[]
[{"$nulls":16},"SATS 1286.2011"]
[{"$nulls":3},"Annex C"]
[{"$nulls":5},"FAILURE TO FULLY COMPLETE, DECLARE, SIGN & DATE THIS ANNEXURE C WILL RESULT IN THE BIDDER SCORING ZERO POINTS"]
[]
[{"$nulls":3},"Local Content Declaration - Summary Schedule "]
[]
[null,null,"(C1)","Tender No.",null,"HOAC-VAR-52627",{"$nulls":9},"Note: VAT to be excluded from all calculations"]
[null,null,"(C2)","Tender description: ",null,"SUPPLY AND  DELIVERY OF UNIFORM CLOTHING TO TRANSNET RAIL INFRASTRUCTURE MANAGER ON AN “AS AND WHEN REQUIRED BASIS” FOR A PERIOD OF SIXTY (60) MONTHS."]
[null,null,"(C3)","Designated product(s)",null,"Textile, Clothing, Leather and Footwear"]
[null,null,"(C4)","Tender Authority:",null,"TRANSNET RAIL INFRASTRUCTURE MANAGER"]
[null,null,"(C5)","Tendering Entity name:"]
[null,null,"(C6)","Tender Exchange Rate:",null,"Pula",null,"EU",null,"GBP"]
[null,null,"(C7)","Specified local content %"]
[{"$nulls":6},"Calculation of local content",{"$nulls":6},"Tender  summary"]
[{"$nulls":3},"Tender item no's","List of items",null,"Tender price - each \n(excl VAT)","Exempted imported value","Tender value  net of exempted imported  content","Imported value","Local value","Local content % (per item)",null,"Tender Qty","Total tender value","Total exempted imported content","Total Imported content"]
[{"$nulls":3},"(C8)","(C9)",null,"(C10)","(C11)","(C12)","(C13)","(C14)","(C15)",null,"(C16)","(C17)","(C18)","(C19)"]
[{"$nulls":3},"Cat. Item # 20","BELT TROUSERS",{"$nulls":8},{"v":65000,"d":"65,000 "}]
[{"$nulls":3},"Cat. Item # 39","BELT, TROUSERS",{"$nulls":8},{"v":400,"d":"400 "}]
[{"$nulls":3},"Cat. Item # 50","BELT, TROUSERS",{"$nulls":8},{"v":350,"d":"350 "}]
[{"$nulls":3},"Cat. Item # 40","BELT, TROUSERS, 50mm",{"$nulls":8},{"v":1801,"d":"1,801 "}]
[{"$nulls":3},"Cat. Item # 41","BELT, TROUSERS, 30mm",{"$nulls":8},{"v":3011,"d":"3,011 "}]
[{"$nulls":13}," (C20)  Total tender  value",{"$f":"SUM(O18:O22)","v":{"v":0,"d":"R  0"}}]
[{"$nulls":3},"Signature of tenderer ",{"$nulls":10},"(C21) Total Exempt imported content",{"$f":"SUM(P18:P23)","v":{"v":0,"d":"R  0"}}]
[{"$nulls":14},"(C22) Total Tender value net of exempt imported content",{"$f":"+O23-P24","v":{"v":0,"d":"R  0"}}]
[{"$nulls":15},"(C23) Total Imported content",{"$f":"SUM(Q18:Q22)","v":{"v":0,"d":"R  0"}}]
[{"$nulls":15},"(C24) Total local content",{"$f":"+P25-Q26","v":{"v":0,"d":"R  0"}}]
[{"$nulls":3},"Date: ",{"$nulls":11},"(C25) Average local content % of tender"]

{"sheet":"Annex C CAT 10","index":9,"n_rows":25,"n_cols":17,"rows_kept":25,"merged":[[3,5,3,15],[7,5,7,8],[7,15,8,16],[8,5,8,11],[9,5,9,8],[10,5,10,8],[11,5,11,8],[15,4,15,5],[16,4,16,5],[17,4,17,5],[18,4,18,5]]}
[]
[{"$nulls":16},"SATS 1286.2011"]
[{"$nulls":3},"Annex C"]
[{"$nulls":5},"FAILURE TO FULLY COMPLETE, DECLARE, SIGN & DATE THIS ANNEXURE C WILL RESULT IN THE BIDDER SCORING ZERO POINTS"]
[]
[{"$nulls":3},"Local Content Declaration - Summary Schedule "]
[]
[null,null,"(C1)","Tender No.",null,"HOAC-VAR-52627",{"$nulls":9},"Note: VAT to be excluded from all calculations"]
[null,null,"(C2)","Tender description: ",null,"SUPPLY AND  DELIVERY OF UNIFORM CLOTHING TO TRANSNET RAIL INFRASTRUCTURE MANAGER ON AN “AS AND WHEN REQUIRED BASIS” FOR A PERIOD OF SIXTY (60) MONTHS."]
[null,null,"(C3)","Designated product(s)",null,"Textile, Clothing, Leather and Footwear"]
[null,null,"(C4)","Tender Authority:",null,"TRANSNET RAIL INFRASTRUCTURE MANAGER"]
[null,null,"(C5)","Tendering Entity name:"]
[null,null,"(C6)","Tender Exchange Rate:",null,"Pula",null,"EU",null,"GBP"]
[null,null,"(C7)","Specified local content %"]
[{"$nulls":6},"Calculation of local content",{"$nulls":6},"Tender  summary"]
[{"$nulls":3},"Tender item no's","List of items",null,"Tender price - each \n(excl VAT)","Exempted imported value","Tender value  net of exempted imported  content","Imported value","Local value","Local content % (per item)",null,"Tender Qty","Total tender value","Total exempted imported content","Total Imported content"]
[{"$nulls":3},"(C8)","(C9)",null,"(C10)","(C11)","(C12)","(C13)","(C14)","(C15)",null,"(C16)","(C17)","(C18)","(C19)"]
[{"$nulls":3},"Cat. Item # 39","BOOTS, COMBAT, Toe Cap",{"$nulls":8},10019]
[{"$nulls":3},"Cat. Item # 42","BOOTS, SAFETY (Chukka) (Steel Toe Cap)",{"$nulls":8},{"v":550,"d":"550 "}]
[{"$nulls":13}," (C20)  Total tender  value"]
[{"$nulls":3},"Signature of tenderer ",{"$nulls":10},"(C21) Total Exempt imported content"]
[{"$nulls":14},"(C22) Total Tender value net of exempt imported content"]
[{"$nulls":15},"(C23) Total Imported content"]
[{"$nulls":15},"(C24) Total local content"]
[{"$nulls":3},"Date: ",{"$nulls":11},"(C25) Average local content % of tender"]

{"sheet":"Annex C CAT 11","index":10,"n_rows":28,"n_cols":17,"rows_kept":28,"merged":[[3,5,3,15],[7,5,7,8],[7,15,8,16],[8,5,8,11],[9,5,9,8],[10,5,10,8],[11,5,11,8],[15,4,15,5],[16,4,16,5],[17,4,17,5],[18,4,18,5],[19,4,19,5],[20,4,20,5],[21,4,21,5]]}
[]
[{"$nulls":16},"SATS 1286.2011"]
[{"$nulls":3},"Annex C"]
[{"$nulls":5},"FAILURE TO FULLY COMPLETE, DECLARE, SIGN & DATE THIS ANNEXURE C WILL RESULT IN THE BIDDER SCORING ZERO POINTS"]
[]
[{"$nulls":3},"Local Content Declaration - Summary Schedule "]
[]
[null,null,"(C1)","Tender No.",null,"HOAC-VAR-52627",{"$nulls":9},"Note: VAT to be excluded from all calculations"]
[null,null,"(C2)","Tender description: ",null,"SUPPLY AND  DELIVERY OF UNIFORM CLOTHING TO TRANSNET RAIL INFRASTRUCTURE MANAGER ON AN “AS AND WHEN REQUIRED BASIS” FOR A PERIOD OF SIXTY (60) MONTHS."]
[null,null,"(C3)","Designated product(s)",null,"Textile, Clothing, Leather and Footwear"]
[null,null,"(C4)","Tender Authority:",null,"TRANSNET RAIL INFRASTRUCTURE MANAGER"]
[null,null,"(C5)","Tendering Entity name:"]
[null,null,"(C6)","Tender Exchange Rate:",null,"Pula",null,"EU",null,"GBP"]
[null,null,"(C7)","Specified local content %"]
[{"$nulls":6},"Calculation of local content",{"$nulls":6},"Tender  summary"]
[{"$nulls":3},"Tender item no's","List of items",null,"Tender price - each \n(excl VAT)","Exempted imported value","Tender value  net of exempted imported  content","Imported value","Local value","Local content % (per item)",null,"Tender Qty","Total tender value","Total exempted imported content","Total Imported content"]
[{"$nulls":3},"(C8)","(C9)",null,"(C10)","(C11)","(C12)","(C13)","(C14)","(C15)",null,"(C16)","(C17)","(C18)","(C19)"]
[{"$nulls":3},"Cat. Item # 21","SWEATER, Jersey",{"$nulls":8},3242]
[{"$nulls":3},"Cat. Item # 22","SWEATER, Pull Over",{"$nulls":8},3264]
[{"$nulls":3},"Cat. Item # 24","CAP, COLD WEATHER",{"$nulls":8},5712]
[{"$nulls":3},"Cat. Item # 27","GLOVES, UNISEX KNITTED",{"$nulls":8},5099]
[{"$nulls":3},"Cat. Item # 35","SCARF, NECKWEAR, UNISEX KNITTED",{"$nulls":8},{"v":5030,"d":"5,030 "}]
[{"$nulls":13}," (C20)  Total tender  value"]
[{"$nulls":3},"Signature of tenderer",{"$nulls":10},"(C21) Total Exempt imported content"]
[{"$nulls":14},"(C22) Total Tender value net of exempt imported content"]
[{"$nulls":15},"(C23) Total Imported content"]
[{"$nulls":15},"(C24) Total local content"]
[{"$nulls":3},"Date: ",{"$nulls":11},"(C25) Average local content % of tender"]

{"sheet":"Annex C CAT 12","index":11,"n_rows":27,"n_cols":17,"rows_kept":27,"merged":[[3,5,3,15],[7,5,7,8],[7,15,8,16],[8,5,8,11],[9,5,9,8],[10,5,10,8],[11,5,11,8],[15,4,15,5],[16,4,16,5],[17,4,17,5],[18,4,18,5],[19,4,19,5],[20,4,20,5]]}
[]
[{"$nulls":16},"SATS 1286.2011"]
[{"$nulls":3},"Annex C"]
[{"$nulls":5},"FAILURE TO FULLY COMPLETE, DECLARE, SIGN & DATE THIS ANNEXURE C WILL RESULT IN THE BIDDER SCORING ZERO POINTS"]
[]
[{"$nulls":3},"Local Content Declaration - Summary Schedule "]
[]
[null,null,"(C1)","Tender No.",null,"HOAC-VAR-52627",{"$nulls":9},"Note: VAT to be excluded from all calculations"]
[null,null,"(C2)","Tender description: ",null,"SUPPLY AND  DELIVERY OF UNIFORM CLOTHING TO TRANSNET RAIL INFRASTRUCTURE MANAGER ON AN “AS AND WHEN REQUIRED BASIS” FOR A PERIOD OF SIXTY (60) MONTHS."]
[null,null,"(C3)","Designated product(s)",null,"Textile, Clothing, Leather and Footwear"]
[null,null,"(C4)","Tender Authority:",null,"TRANSNET RAIL INFRASTRUCTURE MANAGER"]
[null,null,"(C5)","Tendering Entity name:"]
[null,null,"(C6)","Tender Exchange Rate:",null,"Pula",null,"EU",null,"GBP"]
[null,null,"(C7)","Specified local content %"]
[{"$nulls":6},"Calculation of local content",{"$nulls":6},"Tender  summary"]
[{"$nulls":3},"Tender item no's","List of items",null,"Tender price - each \n(excl VAT)","Exempted imported value","Tender value  net of exempted imported  content","Imported value","Local value","Local content % (per item)",null,"Tender Qty","Total tender value","Total exempted imported content","Total Imported content"]
[{"$nulls":3},"(C8)","(C9)",null,"(C10)","(C11)","(C12)","(C13)","(C14)","(C15)",null,"(C16)","(C17)","(C18)","(C19)"]
[{"$nulls":3},"Cat. Item # 11","JACKET, MENS",{"$nulls":8},79]
[{"$nulls":3},"Cat. Item # 12","JACKET, WOMENS",{"$nulls":8},23]
[{"$nulls":3},"Cat. Item # 13","JACKET, MENS",{"$nulls":8},3186]
[{"$nulls":3},"Cat. Item # 14","JACKET, WOMENS",{"$nulls":8},{"v":1205,"d":"1,205 "}]
[{"$nulls":13}," (C20)  Total tender  value"]
[{"$nulls":3},"Signature of tenderer ",{"$nulls":10},"(C21) Total Exempt imported content"]
[{"$nulls":14},"(C22) Total Tender value net of exempt imported content"]
[{"$nulls":15},"(C23) Total Imported content"]
[{"$nulls":15},"(C24) Total local content"]
[{"$nulls":3},"Date: ",{"$nulls":11},"(C25) Average local content % of tender"]

{"sheet":"Annex C CAT 13","index":12,"n_rows":44,"n_cols":17,"rows_kept":44,"merged":[[3,5,3,15],[7,5,7,8],[7,15,8,16],[8,5,8,11],[9,5,9,8],[10,5,10,8],[11,5,11,8],[15,4,15,5],[16,4,16,5],[17,4,17,5],[18,4,18,5],[19,4,19,5],[20,4,20,5],[21,4,21,5],[22,4,22,5],[23,4,23,5],[24,4,24,5],[25,4,25,5],[26,4,26,5],[27,4,27,5],[28,4,28,5],[29,4,29,5],[30,4,30,5],[31,4,31,5],[32,4,32,5],[33,4,33,5],[34,4,34,5],[35,4,35,5],[36,4,36,5],[37,4,37,5]]}
[]
[{"$nulls":16},"SATS 1286.2011"]
[{"$nulls":3},"Annex C"]
[{"$nulls":5},"FAILURE TO FULLY COMPLETE, DECLARE, SIGN & DATE THIS ANNEXURE C WILL RESULT IN THE BIDDER SCORING ZERO POINTS"]
[]
[{"$nulls":3},"Local Content Declaration - Summary Schedule "]
[]
[null,null,"(C1)","Tender No.",null,"HOAC-VAR-52627",{"$nulls":9},"Note: VAT to be excluded from all calculations"]
[null,null,"(C2)","Tender description: ",null,"SUPPLY AND  DELIVERY OF UNIFORM CLOTHING TO TRANSNET RAIL INFRASTRUCTURE MANAGER ON AN “AS AND WHEN REQUIRED BASIS” FOR A PERIOD OF SIXTY (60) MONTHS."]
[null,null,"(C3)","Designated product(s)",null,"Textile, Clothing, Leather and Footwear"]
[null,null,"(C4)","Tender Authority:",null,"TRANSNET RAIL INFRASTRUCTURE MANAGER"]
[null,null,"(C5)","Tendering Entity name:"]
[null,null,"(C6)","Tender Exchange Rate:",null,"Pula",null,"EU",null,"GBP"]
[null,null,"(C7)","Specified local content %"]
[{"$nulls":6},"Calculation of local content",{"$nulls":6},"Tender  summary"]
[{"$nulls":3},"Tender item no's","List of items",null,"Tender price - each \n(excl VAT)","Exempted imported value","Tender value  net of exempted imported  content","Imported value","Local value","Local content % (per item)",null,"Tender Qty","Total tender value","Total exempted imported content","Total Imported content"]
[{"$nulls":3},"(C8)","(C9)",null,"(C10)","(C11)","(C12)","(C13)","(C14)","(C15)",null,"(C16)","(C17)","(C18)","(C19)"]
[{"$nulls":3},"Cat. Item # 4","SHIRT UTILITY",{"$nulls":8},3359]
[{"$nulls":3},"Cat. Item # 5","SHIRT UTILITY",{"$nulls":8},3007]
[{"$nulls":3},"Cat. Item # 6","SHIRT UTILITY (Thermal)",{"$nulls":8},2126]
[{"$nulls":3},"Cat. Item # 7","SHIRT UTILITY (Thermal)",{"$nulls":8},2170]
[{"$nulls":3},"Cat. Item # 8","TROUSERS UTLTY (Thermal Underwear)",{"$nulls":8},1946]
[{"$nulls":3},"Cat. Item #15","TROUSERS, MENS (Combat)",{"$nulls":8},10890]
[{"$nulls":3},"Cat. Item #16","TROUSERS, WOMENS (COMBAT)",{"$nulls":8},4560]
[{"$nulls":3},"Cat. Item #17","MENS COMBAT SHIRTS SHORT SLEEVES",{"$nulls":8},12159]
[{"$nulls":3},"Cat. Item #18","MENS COMBAT SHIRTS LONG SLEEVES",{"$nulls":8},8658]
[{"$nulls":3},"Cat. Item #19","WOMENS COMBAT SHIRTS SHORT SLEEVES",{"$nulls":8},3592]
[{"$nulls":3},"Cat. Item #20","WOMENS COMBAT SHIRTS LONG SLEEVES",{"$nulls":8},3311]
[{"$nulls":3},"Cat. Item #42","TROUSERS UTLTY , Manager, Mens ",{"$nulls":8},12947]
[{"$nulls":3},"Cat. Item #43","TROUSERS UTLTY, Step Out, Mens",{"$nulls":8},281]
[{"$nulls":3},"Cat. Item #44","SLACKS, WOMEN'S, Navy",{"$nulls":8},5008]
[{"$nulls":3},"Cat. Item #45","SLACKS, WOMEN'S, Grey",{"$nulls":8},64]
[{"$nulls":3},"Cat. Item #46","SKIRT, WOMENS, Pencil, Navy",{"$nulls":8},792]
[{"$nulls":3},"Cat. Item #47","SKIRT, WOMENS, Pencil, Grey",{"$nulls":8},48]
[{"$nulls":3},"Cat. Item #48","SHIRT, UTILITY, BUTTON UP NECK Male",{"$nulls":8},7549]
[{"$nulls":3},"Cat. Item #49","SHIRT, UTILITY, OPEN NECK Male",{"$nulls":8},13277]
[{"$nulls":3},"Cat. Item #50","SHIRT, UTILITY, BUTTON UP NECK Women",{"$nulls":8},3758]
[{"$nulls":3},"Cat. Item #51","SHIRT, UTILITY, BUTTON UP NECK Women",{"$nulls":8},5025]
[{"$nulls":13}," (C20)  Total tender  value"]
[{"$nulls":3},"Signature of tenderer ",{"$nulls":10},"(C21) Total Exempt imported content"]
[{"$nulls":14},"(C22) Total Tender value net of exempt imported content"]
[{"$nulls":15},"(C23) Total Imported content"]
[{"$nulls":15},"(C24) Total local content"]
[{"$nulls":3},"Date: ",{"$nulls":11},"(C25) Average local content % of tender"]

{"sheet":"Annex C CAT 14","index":13,"n_rows":25,"n_cols":17,"rows_kept":25,"merged":[[3,5,3,15],[7,5,7,8],[7,15,8,16],[8,5,8,11],[9,5,9,8],[10,5,10,8],[11,5,11,8],[15,4,15,5],[16,4,16,5],[17,4,17,5],[18,4,18,5]]}
[]
[{"$nulls":16},"SATS 1286.2011"]
[{"$nulls":3},"Annex C"]
[{"$nulls":5},"FAILURE TO FULLY COMPLETE, DECLARE, SIGN & DATE THIS ANNEXURE C WILL RESULT IN THE BIDDER SCORING ZERO POINTS"]
[]
[{"$nulls":3},"Local Content Declaration - Summary Schedule "]
[]
[null,null,"(C1)","Tender No.",null,"HOAC-VAR-52627",{"$nulls":9},"Note: VAT to be excluded from all calculations"]
[null,null,"(C2)","Tender description: ",null,"SUPPLY AND  DELIVERY OF UNIFORM CLOTHING TO TRANSNET RAIL INFRASTRUCTURE MANAGER ON AN “AS AND WHEN REQUIRED BASIS” FOR A PERIOD OF SIXTY (60) MONTHS."]
[null,null,"(C3)","Designated product(s)",null,"Textile, Clothing, Leather and Footwear"]
[null,null,"(C4)","Tender Authority:",null,"TRANSNET RAIL INFRASTRUCTURE MANAGER"]
[null,null,"(C5)","Tendering Entity name:"]
[null,null,"(C6)","Tender Exchange Rate:",null,"Pula",null,"EU",null,"GBP"]
[null,null,"(C7)","Specified local content %"]
[{"$nulls":6},"Calculation of local content",{"$nulls":6},"Tender  summary"]
[{"$nulls":3},"Tender item no's","List of items",null,"Tender price - each \n(excl VAT)","Exempted imported value","Tender value  net of exempted imported  content","Imported value","Local value","Local content % (per item)",null,"Tender Qty","Total tender value","Total exempted imported content","Total Imported content"]
[{"$nulls":3},"(C8)","(C9)",null,"(C10)","(C11)","(C12)","(C13)","(C14)","(C15)",null,"(C16)","(C17)","(C18)","(C19)"]
[{"$nulls":3},"Cat. Item # 28","NECKTIE, MENS",{"$nulls":8},623]
[{"$nulls":3},"Cat. Item # 29","SCARF: NECKWEAR WOMENS",{"$nulls":8},{"v":902,"d":"902 "}]
[{"$nulls":13}," (C20)  Total tender  value"]
[{"$nulls":3},"Signature of tenderer ",{"$nulls":10},"(C21) Total Exempt imported content"]
[{"$nulls":14},"(C22) Total Tender value net of exempt imported content"]
[{"$nulls":15},"(C23) Total Imported content"]
[{"$nulls":15},"(C24) Total local content"]
[{"$nulls":3},"Date: ",{"$nulls":11},"(C25) Average local content % of tender"]

{"sheet":"Annex D CAT 1","index":14,"n_rows":60,"n_cols":16,"rows_kept":60,"merged":[[3,4,3,14],[7,10,9,11],[14,2,14,6],[15,3,15,4],[16,3,16,4],[17,3,17,4],[18,3,18,4],[19,3,19,4],[21,13,22,15],[25,3,25,4],[26,3,26,4],[27,3,27,4],[28,3,28,4],[29,3,29,4],[30,3,30,4],[31,3,31,4],[32,3,32,4],[33,3,33,4],[34,3,34,4],[37,2,37,6],[38,2,38,3],[39,2,39,3],[40,2,40,3],[41,2,41,3],[42,2,42,3],[43,2,43,3],[44,2,44,3],[45,2,45,3],[48,6,48,7],[49,2,49,3],[50,2,50,3],[51,2,51,3],[52,2,52,3],[53,2,53,3],[54,2,54,3],[58,13,59,15]]}
[]
[{"$nulls":15},"SATS 1286.2011"]
[null,null,"Annex D"]
[{"$nulls":4},"FAILURE TO FULLY COMPLETE, DECLARE, SIGN & DATE THIS ANNEXURE C WILL RESULT IN THE BIDDER SCORING ZERO POINTS"]
[]
[null,null,"Imported Content Declaration - Supporting Schedule to Annex C"]
[]
[null,"(D1)","Tender No.",null,"HOAC-VAR-52627",{"$nulls":5},"Note: VAT to be excluded from all calculations"]
[null,"(D2)","Tender description: ",null,"SUPPLY AND  DELIVERY OF UNIFORM CLOTHING TO TRANSNET RAIL INFRASTRUCTURE MANAGER ON AN “AS AND WHEN REQUIRED BASIS” FOR A PERIOD OF SIXTY (60) MONTHS."]
[null,"(D3)","Designated Products:",null,"Textile, Clothing, Leather and Footwear"]
[null,"(D4)","Tender Authority:",null,"TRANSNET RAIL INFRASTRUCTURE MANAGER"]
[null,"(D5)","Tendering Entity name:"]
[null,"(D6)","Tender Exchange Rate:",null,"Pula",null,"EU",{"v":9,"d":"R  9.00"},"GBP",{"v":12,"d":"R  12.00"}]
[]
[null,null,"A. Exempted imported content",{"$nulls":4},"Calculation of imported content",{"$nulls":6},"Summary"]
[null,null,"Tender item no's","Description of imported content",null,"Local supplier","Overseas Supplier","Forign currency value as per Commercial Invoice","Tender   Exchange Rate","Local value of imports","Freight costs to port of entry","All locally incurred landing costs & duties","Total landed cost excl VAT",null,"Tender Qty","Exempted imported value"]
[null,null,"(D7)","(D8)",null,"(D9)","(D10)","(D11)","(D12)","(D13)","(D14)","(D15)","(D16)",null,"(D17)","(D18)"]
[]
[]
[]
[{"$nulls":14}," (D19) Total exempt imported value",{"$f":"SUM(P18:P19)","v":{"v":0,"d":"R  0"}}]
[{"$nulls":13},"This total must correspond with Annex C - C 21"]
[]
[]
[null,null,"B. Imported directly by the Tenderer",{"$nulls":4},"Calculation of imported content",{"$nulls":6},"Summary"]
[null,null,"Tender item no's","Description of imported content",null,"Unit of measure","Overseas Supplier","Forign currency value as per Commercial Invoice","Tender Rate of Exchange","Local value of imports","Freight costs to port of entry","All locally incurred landing costs & duties","Total landed cost excl VAT",null,"Tender Qty","Total imported value"]
[null,null,"(D20)","(D21)",null,"(D22)","(D23)","(D24)","(D25)","(D26)","(D27)","(D28)","(D29)",null,"(D30)","(D31)"]
{"$rows_empty":7}
[{"$nulls":3},"`"]
[{"$nulls":14},"(D32)Total imported value by tenderer",{"$f":"SUM(P28:P35)","v":{"v":0,"d":"R  0"}}]
[]
[null,null,"C. Imported by a 3rd party and supplied to the Tenderer",{"$nulls":4},"Calculation of imported content",{"$nulls":6},"Summary"]
[null,null,"Description of imported content",null,"Unit of measure","Local supplier","Overseas Supplier","Forign currency value as per Commercial Invoice","Tender Rate of Exchange","Local value of imports","Freight costs to port of entry","All locally incurred landing costs & duties","Total landed cost excl VAT",null,"Quantity imported","Total imported value"]
[null,null,"(D33)",null,"(D34)","(D35)","(D36)","(D37)","(D38)","(D39)","(D40)","(D41)","(D42)",null,"(D43)","(D44)"]
[]
[]
[]
[]
[]
[null,null,"`"]
[{"$nulls":14},"(D45) Total imported value by 3rd party",{"$f":"SUM(P41:P46)","v":{"v":0,"d":"R  0"}}]
[]
[null,null,"D. Other foreign currency payments",{"$nulls":3},"Calculation of foreign currency payments",{"$nulls":8},"Summary of payments"]
[null,null,"Type of payment",null,"Local supplier making the payment","Overseas beneficiary","Foreign currency value paid","Tender Rate of Exchange",{"$nulls":7},"Local value of payments"]
[null,null,"(D46)",null,"(D47)","(D48)","(D49)","(D50)",{"$nulls":7},"(D51)"]
[]
[]
[]
[]
[{"$nulls":14},"(D52) Total of  foreign currency payments declared by tenderer and/or 3rd party"]
[null,null,"Signature of tenderer "]
[{"$nulls":14},"(D53) Total of imported content & foreign currency payments - (D32), (D45) & (D52) above",{"$f":"+P36+P47+P56","v":{"v":0,"d":"R  0"}}]
[{"$nulls":13},"This total must correspond with Annex C  - C 23"]
[null,null,"Date: "]

{"sheet":"Annex D CAT 2","index":15,"n_rows":60,"n_cols":16,"rows_kept":60,"merged":[[3,4,3,14],[7,10,9,11],[14,2,14,6],[15,3,15,4],[16,3,16,4],[17,3,17,4],[18,3,18,4],[19,3,19,4],[21,13,22,15],[25,3,25,4],[26,3,26,4],[27,3,27,4],[28,3,28,4],[29,3,29,4],[30,3,30,4],[31,3,31,4],[32,3,32,4],[33,3,33,4],[34,3,34,4],[37,2,37,6],[38,2,38,3],[39,2,39,3],[40,2,40,3],[41,2,41,3],[42,2,42,3],[43,2,43,3],[44,2,44,3],[45,2,45,3],[48,6,48,7],[49,2,49,3],[50,2,50,3],[51,2,51,3],[52,2,52,3],[53,2,53,3],[54,2,54,3],[58,13,59,15]]}
[]
[{"$nulls":15},"SATS 1286.2011"]
[null,null,"Annex D"]
[{"$nulls":4},"FAILURE TO FULLY COMPLETE, DECLARE, SIGN & DATE THIS ANNEXURE C WILL RESULT IN THE BIDDER SCORING ZERO POINTS"]
[]
[null,null,"Imported Content Declaration - Supporting Schedule to Annex C"]
[]
[null,"(D1)","Tender No.",null,"HOAC-VAR-52627",{"$nulls":5},"Note: VAT to be excluded from all calculations"]
[null,"(D2)","Tender description: ",null,"SUPPLY AND  DELIVERY OF UNIFORM CLOTHING TO TRANSNET RAIL INFRASTRUCTURE MANAGER ON AN “AS AND WHEN REQUIRED BASIS” FOR A PERIOD OF SIXTY (60) MONTHS."]
[null,"(D3)","Designated Products:",null,"Textile, Clothing, Leather and Footwear"]
[null,"(D4)","Tender Authority:",null,"TRANSNET RAIL INFRASTRUCTURE MANAGER"]
[null,"(D5)","Tendering Entity name:"]
[null,"(D6)","Tender Exchange Rate:",null,"Pula",null,"EU",{"v":9,"d":"R  9.00"},"GBP",{"v":12,"d":"R  12.00"}]
[]
[null,null,"A. Exempted imported content",{"$nulls":4},"Calculation of imported content",{"$nulls":6},"Summary"]
[null,null,"Tender item no's","Description of imported content",null,"Local supplier","Overseas Supplier","Forign currency value as per Commercial Invoice","Tender   Exchange Rate","Local value of imports","Freight costs to port of entry","All locally incurred landing costs & duties","Total landed cost excl VAT",null,"Tender Qty","Exempted imported value"]
[null,null,"(D7)","(D8)",null,"(D9)","(D10)","(D11)","(D12)","(D13)","(D14)","(D15)","(D16)",null,"(D17)","(D18)"]
[]
[]
[]
[{"$nulls":14}," (D19) Total exempt imported value",{"$f":"SUM(P18:P19)","v":{"v":0,"d":"R  0"}}]
[{"$nulls":13},"This total must correspond with Annex C - C 21"]
[]
[]
[null,null,"B. Imported directly by the Tenderer",{"$nulls":4},"Calculation of imported content",{"$nulls":6},"Summary"]
[null,null,"Tender item no's","Description of imported content",null,"Unit of measure","Overseas Supplier","Forign currency value as per Commercial Invoice","Tender Rate of Exchange","Local value of imports","Freight costs to port of entry","All locally incurred landing costs & duties","Total landed cost excl VAT",null,"Tender Qty","Total imported value"]
[null,null,"(D20)","(D21)",null,"(D22)","(D23)","(D24)","(D25)","(D26)","(D27)","(D28)","(D29)",null,"(D30)","(D31)"]
{"$rows_empty":7}
[{"$nulls":3},"`"]
[{"$nulls":14},"(D32)Total imported value by tenderer",{"$f":"SUM(P28:P35)","v":{"v":0,"d":"R  0"}}]
[]
[null,null,"C. Imported by a 3rd party and supplied to the Tenderer",{"$nulls":4},"Calculation of imported content",{"$nulls":6},"Summary"]
[null,null,"Description of imported content",null,"Unit of measure","Local supplier","Overseas Supplier","Forign currency value as per Commercial Invoice","Tender Rate of Exchange","Local value of imports","Freight costs to port of entry","All locally incurred landing costs & duties","Total landed cost excl VAT",null,"Quantity imported","Total imported value"]
[null,null,"(D33)",null,"(D34)","(D35)","(D36)","(D37)","(D38)","(D39)","(D40)","(D41)","(D42)",null,"(D43)","(D44)"]
[]
[]
[]
[]
[]
[null,null,"`"]
[{"$nulls":14},"(D45) Total imported value by 3rd party",{"$f":"SUM(P41:P46)","v":{"v":0,"d":"R  0"}}]
[]
[null,null,"D. Other foreign currency payments",{"$nulls":3},"Calculation of foreign currency payments",{"$nulls":8},"Summary of payments"]
[null,null,"Type of payment",null,"Local supplier making the payment","Overseas beneficiary","Foreign currency value paid","Tender Rate of Exchange",{"$nulls":7},"Local value of payments"]
[null,null,"(D46)",null,"(D47)","(D48)","(D49)","(D50)",{"$nulls":7},"(D51)"]
[]
[]
[]
[]
[{"$nulls":14},"(D52) Total of  foreign currency payments declared by tenderer and/or 3rd party"]
[null,null,"Signature of tenderer"]
[{"$nulls":14},"(D53) Total of imported content & foreign currency payments - (D32), (D45) & (D52) above",{"$f":"+P36+P47+P56","v":{"v":0,"d":"R  0"}}]
[{"$nulls":13},"This total must correspond with Annex C  - C 23"]
[null,null,"Date: "]

{"sheet":"Annex D CAT 3","index":16,"n_rows":60,"n_cols":16,"rows_kept":60,"merged":[[3,4,3,14],[7,10,9,11],[14,2,14,6],[15,3,15,4],[16,3,16,4],[17,3,17,4],[18,3,18,4],[19,3,19,4],[21,13,22,15],[25,3,25,4],[26,3,26,4],[27,3,27,4],[28,3,28,4],[29,3,29,4],[30,3,30,4],[31,3,31,4],[32,3,32,4],[33,3,33,4],[34,3,34,4],[37,2,37,6],[38,2,38,3],[39,2,39,3],[40,2,40,3],[41,2,41,3],[42,2,42,3],[43,2,43,3],[44,2,44,3],[45,2,45,3],[48,6,48,7],[49,2,49,3],[50,2,50,3],[51,2,51,3],[52,2,52,3],[53,2,53,3],[54,2,54,3],[58,13,59,15]]}
[]
[{"$nulls":15},"SATS 1286.2011"]
[null,null,"Annex D"]
[{"$nulls":4},"FAILURE TO FULLY COMPLETE, DECLARE, SIGN & DATE THIS ANNEXURE C WILL RESULT IN THE BIDDER SCORING ZERO POINTS"]
[]
[null,null,"Imported Content Declaration - Supporting Schedule to Annex C"]
[]
[null,"(D1)","Tender No.",null,"HOAC-VAR-52627",{"$nulls":5},"Note: VAT to be excluded from all calculations"]
[null,"(D2)","Tender description: ",null,"SUPPLY AND  DELIVERY OF UNIFORM CLOTHING TO TRANSNET RAIL INFRASTRUCTURE MANAGER ON AN “AS AND WHEN REQUIRED BASIS” FOR A PERIOD OF SIXTY (60) MONTHS."]
[null,"(D3)","Designated Products:",null,"Textile, Clothing, Leather and Footwear"]
[null,"(D4)","Tender Authority:",null,"TRANSNET RAIL INFRASTRUCTURE MANAGER"]
[null,"(D5)","Tendering Entity name:"]
[null,"(D6)","Tender Exchange Rate:",null,"Pula",null,"EU",{"v":9,"d":"R  9.00"},"GBP",{"v":12,"d":"R  12.00"}]
[]
[null,null,"A. Exempted imported content",{"$nulls":4},"Calculation of imported content",{"$nulls":6},"Summary"]
[null,null,"Tender item no's","Description of imported content",null,"Local supplier","Overseas Supplier","Forign currency value as per Commercial Invoice","Tender   Exchange Rate","Local value of imports","Freight costs to port of entry","All locally incurred landing costs & duties","Total landed cost excl VAT",null,"Tender Qty","Exempted imported value"]
[null,null,"(D7)","(D8)",null,"(D9)","(D10)","(D11)","(D12)","(D13)","(D14)","(D15)","(D16)",null,"(D17)","(D18)"]
[]
[]
[]
[{"$nulls":14}," (D19) Total exempt imported value",{"$f":"SUM(P18:P19)","v":{"v":0,"d":"R  0"}}]
[{"$nulls":13},"This total must correspond with Annex C - C 21"]
[]
[]
[null,null,"B. Imported directly by the Tenderer",{"$nulls":4},"Calculation of imported content",{"$nulls":6},"Summary"]
[null,null,"Tender item no's","Description of imported content",null,"Unit of measure","Overseas Supplier","Forign currency value as per Commercial Invoice","Tender Rate of Exchange","Local value of imports","Freight costs to port of entry","All locally incurred landing costs & duties","Total landed cost excl VAT",null,"Tender Qty","Total imported value"]
[null,null,"(D20)","(D21)",null,"(D22)","(D23)","(D24)","(D25)","(D26)","(D27)","(D28)","(D29)",null,"(D30)","(D31)"]
{"$rows_empty":7}
[{"$nulls":3},"`"]
[{"$nulls":14},"(D32)Total imported value by tenderer",{"$f":"SUM(P28:P35)","v":{"v":0,"d":"R  0"}}]
[]
[null,null,"C. Imported by a 3rd party and supplied to the Tenderer",{"$nulls":4},"Calculation of imported content",{"$nulls":6},"Summary"]
[null,null,"Description of imported content",null,"Unit of measure","Local supplier","Overseas Supplier","Forign currency value as per Commercial Invoice","Tender Rate of Exchange","Local value of imports","Freight costs to port of entry","All locally incurred landing costs & duties","Total landed cost excl VAT",null,"Quantity imported","Total imported value"]
[null,null,"(D33)",null,"(D34)","(D35)","(D36)","(D37)","(D38)","(D39)","(D40)","(D41)","(D42)",null,"(D43)","(D44)"]
[]
[]
[]
[]
[]
[null,null,"`"]
[{"$nulls":14},"(D45) Total imported value by 3rd party",{"$f":"SUM(P41:P46)","v":{"v":0,"d":"R  0"}}]
[]
[null,null,"D. Other foreign currency payments",{"$nulls":3},"Calculation of foreign currency payments",{"$nulls":8},"Summary of payments"]
[null,null,"Type of payment",null,"Local supplier making the payment","Overseas beneficiary","Foreign currency value paid","Tender Rate of Exchange",{"$nulls":7},"Local value of payments"]
[null,null,"(D46)",null,"(D47)","(D48)","(D49)","(D50)",{"$nulls":7},"(D51)"]
[]
[]
[]
[]
[{"$nulls":14},"(D52) Total of  foreign currency payments declared by tenderer and/or 3rd party"]
[null,null,"Signature of tenderer "]
[{"$nulls":14},"(D53) Total of imported content & foreign currency payments - (D32), (D45) & (D52) above",{"$f":"+P36+P47+P56","v":{"v":0,"d":"R  0"}}]
[{"$nulls":13},"This total must correspond with Annex C  - C 23"]
[null,null,"Date: "]

{"sheet":"Annex D CAT 4","index":17,"n_rows":60,"n_cols":16,"rows_kept":60,"merged":[[3,4,3,14],[7,10,9,11],[14,2,14,6],[15,3,15,4],[16,3,16,4],[17,3,17,4],[18,3,18,4],[19,3,19,4],[21,13,22,15],[25,3,25,4],[26,3,26,4],[27,3,27,4],[28,3,28,4],[29,3,29,4],[30,3,30,4],[31,3,31,4],[32,3,32,4],[33,3,33,4],[34,3,34,4],[37,2,37,6],[38,2,38,3],[39,2,39,3],[40,2,40,3],[41,2,41,3],[42,2,42,3],[43,2,43,3],[44,2,44,3],[45,2,45,3],[48,6,48,7],[49,2,49,3],[50,2,50,3],[51,2,51,3],[52,2,52,3],[53,2,53,3],[54,2,54,3],[58,13,59,15]]}
[]
[{"$nulls":15},"SATS 1286.2011"]
[null,null,"Annex D"]
[{"$nulls":4},"FAILURE TO FULLY COMPLETE, DECLARE, SIGN & DATE THIS ANNEXURE C WILL RESULT IN THE BIDDER SCORING ZERO POINTS"]
[]
[null,null,"Imported Content Declaration - Supporting Schedule to Annex C"]
[]
[null,"(D1)","Tender No.",null,"HOAC-VAR-52627",{"$nulls":5},"Note: VAT to be excluded from all calculations"]
[null,"(D2)","Tender description: ",null,"SUPPLY AND  DELIVERY OF UNIFORM CLOTHING TO TRANSNET RAIL INFRASTRUCTURE MANAGER ON AN “AS AND WHEN REQUIRED BASIS” FOR A PERIOD OF SIXTY (60) MONTHS."]
[null,"(D3)","Designated Products:",null,"Textile, Clothing, Leather and Footwear"]
[null,"(D4)","Tender Authority:",null,"TRANSNET RAIL INFRASTRUCTURE MANAGER"]
[null,"(D5)","Tendering Entity name:"]
[null,"(D6)","Tender Exchange Rate:",null,"Pula",null,"EU",{"v":9,"d":"R  9.00"},"GBP",{"v":12,"d":"R  12.00"}]
[]
[null,null,"A. Exempted imported content",{"$nulls":4},"Calculation of imported content",{"$nulls":6},"Summary"]
[null,null,"Tender item no's","Description of imported content",null,"Local supplier","Overseas Supplier","Forign currency value as per Commercial Invoice","Tender   Exchange Rate","Local value of imports","Freight costs to port of entry","All locally incurred landing costs & duties","Total landed cost excl VAT",null,"Tender Qty","Exempted imported value"]
[null,null,"(D7)","(D8)",null,"(D9)","(D10)","(D11)","(D12)","(D13)","(D14)","(D15)","(D16)",null,"(D17)","(D18)"]
[]
[]
[]
[{"$nulls":14}," (D19) Total exempt imported value",{"$f":"SUM(P18:P19)","v":{"v":0,"d":"R  0"}}]
[{"$nulls":13},"This total must correspond with Annex C - C 21"]
[]
[]
[null,null,"B. Imported directly by the Tenderer",{"$nulls":4},"Calculation of imported content",{"$nulls":6},"Summary"]
[null,null,"Tender item no's","Description of imported content",null,"Unit of measure","Overseas Supplier","Forign currency value as per Commercial Invoice","Tender Rate of Exchange","Local value of imports","Freight costs to port of entry","All locally incurred landing costs & duties","Total landed cost excl VAT",null,"Tender Qty","Total imported value"]
[null,null,"(D20)","(D21)",null,"(D22)","(D23)","(D24)","(D25)","(D26)","(D27)","(D28)","(D29)",null,"(D30)","(D31)"]
{"$rows_empty":7}
[{"$nulls":3},"`"]
[{"$nulls":14},"(D32)Total imported value by tenderer",{"$f":"SUM(P28:P35)","v":{"v":0,"d":"R  0"}}]
[]
[null,null,"C. Imported by a 3rd party and supplied to the Tenderer",{"$nulls":4},"Calculation of imported content",{"$nulls":6},"Summary"]
[null,null,"Description of imported content",null,"Unit of measure","Local supplier","Overseas Supplier","Forign currency value as per Commercial Invoice","Tender Rate of Exchange","Local value of imports","Freight costs to port of entry","All locally incurred landing costs & duties","Total landed cost excl VAT",null,"Quantity imported","Total imported value"]
[null,null,"(D33)",null,"(D34)","(D35)","(D36)","(D37)","(D38)","(D39)","(D40)","(D41)","(D42)",null,"(D43)","(D44)"]
[]
[]
[]
[]
[]
[null,null,"`"]
[{"$nulls":14},"(D45) Total imported value by 3rd party",{"$f":"SUM(P41:P46)","v":{"v":0,"d":"R  0"}}]
[]
[null,null,"D. Other foreign currency payments",{"$nulls":3},"Calculation of foreign currency payments",{"$nulls":8},"Summary of payments"]
[null,null,"Type of payment",null,"Local supplier making the payment","Overseas beneficiary","Foreign currency value paid","Tender Rate of Exchange",{"$nulls":7},"Local value of payments"]
[null,null,"(D46)",null,"(D47)","(D48)","(D49)","(D50)",{"$nulls":7},"(D51)"]
[]
[]
[]
[]
[{"$nulls":14},"(D52) Total of  foreign currency payments declared by tenderer and/or 3rd party"]
[null,null,"Signature of tenderer "]
[{"$nulls":14},"(D53) Total of imported content & foreign currency payments - (D32), (D45) & (D52) above",{"$f":"+P36+P47+P56","v":{"v":0,"d":"R  0"}}]
[{"$nulls":13},"This total must correspond with Annex C  - C 23"]
[null,null,"Date: "]

{"sheet":"Annex D CAT 5","index":18,"n_rows":60,"n_cols":16,"rows_kept":60,"merged":[[3,4,3,14],[7,10,9,11],[14,2,14,6],[15,3,15,4],[16,3,16,4],[17,3,17,4],[18,3,18,4],[19,3,19,4],[21,13,22,15],[25,3,25,4],[26,3,26,4],[27,3,27,4],[28,3,28,4],[29,3,29,4],[30,3,30,4],[31,3,31,4],[32,3,32,4],[33,3,33,4],[34,3,34,4],[37,2,37,6],[38,2,38,3],[39,2,39,3],[40,2,40,3],[41,2,41,3],[42,2,42,3],[43,2,43,3],[44,2,44,3],[45,2,45,3],[48,6,48,7],[49,2,49,3],[50,2,50,3],[51,2,51,3],[52,2,52,3],[53,2,53,3],[54,2,54,3],[58,13,59,15]]}
[]
[{"$nulls":15},"SATS 1286.2011"]
[null,null,"Annex D"]
[{"$nulls":4},"FAILURE TO FULLY COMPLETE, DECLARE, SIGN & DATE THIS ANNEXURE C WILL RESULT IN THE BIDDER SCORING ZERO POINTS"]
[]
[null,null,"Imported Content Declaration - Supporting Schedule to Annex C"]
[]
[null,"(D1)","Tender No.",null,"HOAC-VAR-52627",{"$nulls":5},"Note: VAT to be excluded from all calculations"]
[null,"(D2)","Tender description: ",null,"SUPPLY AND  DELIVERY OF UNIFORM CLOTHING TO TRANSNET RAIL INFRASTRUCTURE MANAGER ON AN “AS AND WHEN REQUIRED BASIS” FOR A PERIOD OF SIXTY (60) MONTHS."]
[null,"(D3)","Designated Products:",null,"Textile, Clothing, Leather and Footwear"]
[null,"(D4)","Tender Authority:",null,"TRANSNET RAIL INFRASTRUCTURE MANAGER"]
[null,"(D5)","Tendering Entity name:"]
[null,"(D6)","Tender Exchange Rate:",null,"Pula",null,"EU",{"v":9,"d":"R  9.00"},"GBP",{"v":12,"d":"R  12.00"}]
[]
[null,null,"A. Exempted imported content",{"$nulls":4},"Calculation of imported content",{"$nulls":6},"Summary"]
[null,null,"Tender item no's","Description of imported content",null,"Local supplier","Overseas Supplier","Forign currency value as per Commercial Invoice","Tender   Exchange Rate","Local value of imports","Freight costs to port of entry","All locally incurred landing costs & duties","Total landed cost excl VAT",null,"Tender Qty","Exempted imported value"]
[null,null,"(D7)","(D8)",null,"(D9)","(D10)","(D11)","(D12)","(D13)","(D14)","(D15)","(D16)",null,"(D17)","(D18)"]
[]
[]
[]
[{"$nulls":14}," (D19) Total exempt imported value",{"$f":"SUM(P18:P19)","v":{"v":0,"d":"R  0"}}]
[{"$nulls":13},"This total must correspond with Annex C - C 21"]
[]
[]
[null,null,"B. Imported directly by the Tenderer",{"$nulls":4},"Calculation of imported content",{"$nulls":6},"Summary"]
[null,null,"Tender item no's","Description of imported content",null,"Unit of measure","Overseas Supplier","Forign currency value as per Commercial Invoice","Tender Rate of Exchange","Local value of imports","Freight costs to port of entry","All locally incurred landing costs & duties","Total landed cost excl VAT",null,"Tender Qty","Total imported value"]
[null,null,"(D20)","(D21)",null,"(D22)","(D23)","(D24)","(D25)","(D26)","(D27)","(D28)","(D29)",null,"(D30)","(D31)"]
{"$rows_empty":7}
[{"$nulls":3},"`"]
[{"$nulls":14},"(D32)Total imported value by tenderer",{"$f":"SUM(P28:P35)","v":{"v":0,"d":"R  0"}}]
[]
[null,null,"C. Imported by a 3rd party and supplied to the Tenderer",{"$nulls":4},"Calculation of imported content",{"$nulls":6},"Summary"]
[null,null,"Description of imported content",null,"Unit of measure","Local supplier","Overseas Supplier","Forign currency value as per Commercial Invoice","Tender Rate of Exchange","Local value of imports","Freight costs to port of entry","All locally incurred landing costs & duties","Total landed cost excl VAT",null,"Quantity imported","Total imported value"]
[null,null,"(D33)",null,"(D34)","(D35)","(D36)","(D37)","(D38)","(D39)","(D40)","(D41)","(D42)",null,"(D43)","(D44)"]
[]
[]
[]
[]
[]
[null,null,"`"]
[{"$nulls":14},"(D45) Total imported value by 3rd party",{"$f":"SUM(P41:P46)","v":{"v":0,"d":"R  0"}}]
[]
[null,null,"D. Other foreign currency payments",{"$nulls":3},"Calculation of foreign currency payments",{"$nulls":8},"Summary of payments"]
[null,null,"Type of payment",null,"Local supplier making the payment","Overseas beneficiary","Foreign currency value paid","Tender Rate of Exchange",{"$nulls":7},"Local value of payments"]
[null,null,"(D46)",null,"(D47)","(D48)","(D49)","(D50)",{"$nulls":7},"(D51)"]
[]
[]
[]
[]
[{"$nulls":14},"(D52) Total of  foreign currency payments declared by tenderer and/or 3rd party"]
[null,null,"Signature of tenderer "]
[{"$nulls":14},"(D53) Total of imported content & foreign currency payments - (D32), (D45) & (D52) above",{"$f":"+P36+P47+P56","v":{"v":0,"d":"R  0"}}]
[{"$nulls":13},"This total must correspond with Annex C  - C 23"]
[null,null,"Date: "]

{"sheet":"Annex D CAT 6","index":19,"n_rows":60,"n_cols":16,"rows_kept":60,"merged":[[3,4,3,14],[7,10,9,11],[14,2,14,6],[15,3,15,4],[16,3,16,4],[17,3,17,4],[18,3,18,4],[19,3,19,4],[21,13,22,15],[25,3,25,4],[26,3,26,4],[27,3,27,4],[28,3,28,4],[29,3,29,4],[30,3,30,4],[31,3,31,4],[32,3,32,4],[33,3,33,4],[34,3,34,4],[37,2,37,6],[38,2,38,3],[39,2,39,3],[40,2,40,3],[41,2,41,3],[42,2,42,3],[43,2,43,3],[44,2,44,3],[45,2,45,3],[48,6,48,7],[49,2,49,3],[50,2,50,3],[51,2,51,3],[52,2,52,3],[53,2,53,3],[54,2,54,3],[58,13,59,15]]}
[]
[{"$nulls":15},"SATS 1286.2011"]
[null,null,"Annex D"]
[{"$nulls":4},"FAILURE TO FULLY COMPLETE, DECLARE, SIGN & DATE THIS ANNEXURE C WILL RESULT IN THE BIDDER SCORING ZERO POINTS"]
[]
[null,null,"Imported Content Declaration - Supporting Schedule to Annex C"]
[]
[null,"(D1)","Tender No.",null,"HOAC-VAR-52627",{"$nulls":5},"Note: VAT to be excluded from all calculations"]
[null,"(D2)","Tender description: ",null,"SUPPLY AND  DELIVERY OF UNIFORM CLOTHING TO TRANSNET RAIL INFRASTRUCTURE MANAGER ON AN “AS AND WHEN REQUIRED BASIS” FOR A PERIOD OF SIXTY (60) MONTHS."]
[null,"(D3)","Designated Products:",null,"Textile, Clothing, Leather and Footwear"]
[null,"(D4)","Tender Authority:",null,"TRANSNET RAIL INFRASTRUCTURE MANAGER"]
[null,"(D5)","Tendering Entity name:"]
[null,"(D6)","Tender Exchange Rate:",null,"Pula",null,"EU",{"v":9,"d":"R  9.00"},"GBP",{"v":12,"d":"R  12.00"}]
[]
[null,null,"A. Exempted imported content",{"$nulls":4},"Calculation of imported content",{"$nulls":6},"Summary"]
[null,null,"Tender item no's","Description of imported content",null,"Local supplier","Overseas Supplier","Forign currency value as per Commercial Invoice","Tender   Exchange Rate","Local value of imports","Freight costs to port of entry","All locally incurred landing costs & duties","Total landed cost excl VAT",null,"Tender Qty","Exempted imported value"]
[null,null,"(D7)","(D8)",null,"(D9)","(D10)","(D11)","(D12)","(D13)","(D14)","(D15)","(D16)",null,"(D17)","(D18)"]
[]
[]
[]
[{"$nulls":14}," (D19) Total exempt imported value",{"$f":"SUM(P18:P19)","v":{"v":0,"d":"R  0"}}]
[{"$nulls":13},"This total must correspond with Annex C - C 21"]
[]
[]
[null,null,"B. Imported directly by the Tenderer",{"$nulls":4},"Calculation of imported content",{"$nulls":6},"Summary"]
[null,null,"Tender item no's","Description of imported content",null,"Unit of measure","Overseas Supplier","Forign currency value as per Commercial Invoice","Tender Rate of Exchange","Local value of imports","Freight costs to port of entry","All locally incurred landing costs & duties","Total landed cost excl VAT",null,"Tender Qty","Total imported value"]
[null,null,"(D20)","(D21)",null,"(D22)","(D23)","(D24)","(D25)","(D26)","(D27)","(D28)","(D29)",null,"(D30)","(D31)"]
{"$rows_empty":7}
[{"$nulls":3},"`"]
[{"$nulls":14},"(D32)Total imported value by tenderer",{"$f":"SUM(P28:P35)","v":{"v":0,"d":"R  0"}}]
[]
[null,null,"C. Imported by a 3rd party and supplied to the Tenderer",{"$nulls":4},"Calculation of imported content",{"$nulls":6},"Summary"]
[null,null,"Description of imported content",null,"Unit of measure","Local supplier","Overseas Supplier","Forign currency value as per Commercial Invoice","Tender Rate of Exchange","Local value of imports","Freight costs to port of entry","All locally incurred landing costs & duties","Total landed cost excl VAT",null,"Quantity imported","Total imported value"]
[null,null,"(D33)",null,"(D34)","(D35)","(D36)","(D37)","(D38)","(D39)","(D40)","(D41)","(D42)",null,"(D43)","(D44)"]
[]
[]
[]
[]
[]
[null,null,"`"]
[{"$nulls":14},"(D45) Total imported value by 3rd party",{"$f":"SUM(P41:P46)","v":{"v":0,"d":"R  0"}}]
[]
[null,null,"D. Other foreign currency payments",{"$nulls":3},"Calculation of foreign currency payments",{"$nulls":8},"Summary of payments"]
[null,null,"Type of payment",null,"Local supplier making the payment","Overseas beneficiary","Foreign currency value paid","Tender Rate of Exchange",{"$nulls":7},"Local value of payments"]
[null,null,"(D46)",null,"(D47)","(D48)","(D49)","(D50)",{"$nulls":7},"(D51)"]
[]
[]
[]
[]
[{"$nulls":14},"(D52) Total of  foreign currency payments declared by tenderer and/or 3rd party"]
[null,null,"Signature of tenderer "]
[{"$nulls":14},"(D53) Total of imported content & foreign currency payments - (D32), (D45) & (D52) above",{"$f":"+P36+P47+P56","v":{"v":0,"d":"R  0"}}]
[{"$nulls":13},"This total must correspond with Annex C  - C 23"]
[null,null,"Date: "]

{"sheet":"Annex D CAT 7","index":20,"n_rows":60,"n_cols":16,"rows_kept":60,"merged":[[3,4,3,14],[7,10,9,11],[14,2,14,6],[15,3,15,4],[16,3,16,4],[17,3,17,4],[18,3,18,4],[19,3,19,4],[21,13,22,15],[25,3,25,4],[26,3,26,4],[27,3,27,4],[28,3,28,4],[29,3,29,4],[30,3,30,4],[31,3,31,4],[32,3,32,4],[33,3,33,4],[34,3,34,4],[37,2,37,6],[38,2,38,3],[39,2,39,3],[40,2,40,3],[41,2,41,3],[42,2,42,3],[43,2,43,3],[44,2,44,3],[45,2,45,3],[48,6,48,7],[49,2,49,3],[50,2,50,3],[51,2,51,3],[52,2,52,3],[53,2,53,3],[54,2,54,3],[58,13,59,15]]}
[]
[{"$nulls":15},"SATS 1286.2011"]
[null,null,"Annex D"]
[{"$nulls":4},"FAILURE TO FULLY COMPLETE, DECLARE, SIGN & DATE THIS ANNEXURE C WILL RESULT IN THE BIDDER SCORING ZERO POINTS"]
[]
[null,null,"Imported Content Declaration - Supporting Schedule to Annex C"]
[]
[null,"(D1)","Tender No.",null,"HOAC-VAR-52627",{"$nulls":5},"Note: VAT to be excluded from all calculations"]
[null,"(D2)","Tender description: ",null,"SUPPLY AND  DELIVERY OF UNIFORM CLOTHING TO TRANSNET RAIL INFRASTRUCTURE MANAGER ON AN “AS AND WHEN REQUIRED BASIS” FOR A PERIOD OF SIXTY (60) MONTHS."]
[null,"(D3)","Designated Products:",null,"Textile, Clothing, Leather and Footwear"]
[null,"(D4)","Tender Authority:",null,"TRANSNET RAIL INFRASTRUCTURE MANAGER"]
[null,"(D5)","Tendering Entity name:"]
[null,"(D6)","Tender Exchange Rate:",null,"Pula",null,"EU",{"v":9,"d":"R  9.00"},"GBP",{"v":12,"d":"R  12.00"}]
[]
[null,null,"A. Exempted imported content",{"$nulls":4},"Calculation of imported content",{"$nulls":6},"Summary"]
[null,null,"Tender item no's","Description of imported content",null,"Local supplier","Overseas Supplier","Forign currency value as per Commercial Invoice","Tender   Exchange Rate","Local value of imports","Freight costs to port of entry","All locally incurred landing costs & duties","Total landed cost excl VAT",null,"Tender Qty","Exempted imported value"]
[null,null,"(D7)","(D8)",null,"(D9)","(D10)","(D11)","(D12)","(D13)","(D14)","(D15)","(D16)",null,"(D17)","(D18)"]
[]
[]
[]
[{"$nulls":14}," (D19) Total exempt imported value",{"$f":"SUM(P18:P19)","v":{"v":0,"d":"R  0"}}]
[{"$nulls":13},"This total must correspond with Annex C - C 21"]
[]
[]
[null,null,"B. Imported directly by the Tenderer",{"$nulls":4},"Calculation of imported content",{"$nulls":6},"Summary"]
[null,null,"Tender item no's","Description of imported content",null,"Unit of measure","Overseas Supplier","Forign currency value as per Commercial Invoice","Tender Rate of Exchange","Local value of imports","Freight costs to port of entry","All locally incurred landing costs & duties","Total landed cost excl VAT",null,"Tender Qty","Total imported value"]
[null,null,"(D20)","(D21)",null,"(D22)","(D23)","(D24)","(D25)","(D26)","(D27)","(D28)","(D29)",null,"(D30)","(D31)"]
{"$rows_empty":7}
[{"$nulls":3},"`"]
[{"$nulls":14},"(D32)Total imported value by tenderer",{"$f":"SUM(P28:P35)","v":{"v":0,"d":"R  0"}}]
[]
[null,null,"C. Imported by a 3rd party and supplied to the Tenderer",{"$nulls":4},"Calculation of imported content",{"$nulls":6},"Summary"]
[null,null,"Description of imported content",null,"Unit of measure","Local supplier","Overseas Supplier","Forign currency value as per Commercial Invoice","Tender Rate of Exchange","Local value of imports","Freight costs to port of entry","All locally incurred landing costs & duties","Total landed cost excl VAT",null,"Quantity imported","Total imported value"]
[null,null,"(D33)",null,"(D34)","(D35)","(D36)","(D37)","(D38)","(D39)","(D40)","(D41)","(D42)",null,"(D43)","(D44)"]
[]
[]
[]
[]
[]
[null,null,"`"]
[{"$nulls":14},"(D45) Total imported value by 3rd party",{"$f":"SUM(P41:P46)","v":{"v":0,"d":"R  0"}}]
[]
[null,null,"D. Other foreign currency payments",{"$nulls":3},"Calculation of foreign currency payments",{"$nulls":8},"Summary of payments"]
[null,null,"Type of payment",null,"Local supplier making the payment","Overseas beneficiary","Foreign currency value paid","Tender Rate of Exchange",{"$nulls":7},"Local value of payments"]
[null,null,"(D46)",null,"(D47)","(D48)","(D49)","(D50)",{"$nulls":7},"(D51)"]
[]
[]
[]
[]
[{"$nulls":14},"(D52) Total of  foreign currency payments declared by tenderer and/or 3rd party"]
[null,null,"Signature of tenderer "]
[{"$nulls":14},"(D53) Total of imported content & foreign currency payments - (D32), (D45) & (D52) above",{"$f":"+P36+P47+P56","v":{"v":0,"d":"R  0"}}]
[{"$nulls":13},"This total must correspond with Annex C  - C 23"]
[null,null,"Date: "]

{"sheet":"Annex D CAT 8","index":21,"n_rows":60,"n_cols":16,"rows_kept":60,"merged":[[3,4,3,14],[7,10,9,11],[14,2,14,6],[15,3,15,4],[16,3,16,4],[17,3,17,4],[18,3,18,4],[19,3,19,4],[21,13,22,15],[25,3,25,4],[26,3,26,4],[27,3,27,4],[28,3,28,4],[29,3,29,4],[30,3,30,4],[31,3,31,4],[32,3,32,4],[33,3,33,4],[34,3,34,4],[37,2,37,6],[38,2,38,3],[39,2,39,3],[40,2,40,3],[41,2,41,3],[42,2,42,3],[43,2,43,3],[44,2,44,3],[45,2,45,3],[48,6,48,7],[49,2,49,3],[50,2,50,3],[51,2,51,3],[52,2,52,3],[53,2,53,3],[54,2,54,3],[58,13,59,15]]}
[]
[{"$nulls":15},"SATS 1286.2011"]
[null,null,"Annex D"]
[{"$nulls":4},"FAILURE TO FULLY COMPLETE, DECLARE, SIGN & DATE THIS ANNEXURE C WILL RESULT IN THE BIDDER SCORING ZERO POINTS"]
[]
[null,null,"Imported Content Declaration - Supporting Schedule to Annex C"]
[]
[null,"(D1)","Tender No.",null,"HOAC-VAR-52627",{"$nulls":5},"Note: VAT to be excluded from all calculations"]
[null,"(D2)","Tender description: ",null,"SUPPLY AND  DELIVERY OF UNIFORM CLOTHING TO TRANSNET RAIL INFRASTRUCTURE MANAGER ON AN “AS AND WHEN REQUIRED BASIS” FOR A PERIOD OF SIXTY (60) MONTHS."]
[null,"(D3)","Designated Products:",null,"Textile, Clothing, Leather and Footwear"]
[null,"(D4)","Tender Authority:",null,"TRANSNET RAIL INFRASTRUCTURE MANAGER"]
[null,"(D5)","Tendering Entity name:"]
[null,"(D6)","Tender Exchange Rate:",null,"Pula",null,"EU",{"v":9,"d":"R  9.00"},"GBP",{"v":12,"d":"R  12.00"}]
[]
[null,null,"A. Exempted imported content",{"$nulls":4},"Calculation of imported content",{"$nulls":6},"Summary"]
[null,null,"Tender item no's","Description of imported content",null,"Local supplier","Overseas Supplier","Forign currency value as per Commercial Invoice","Tender   Exchange Rate","Local value of imports","Freight costs to port of entry","All locally incurred landing costs & duties","Total landed cost excl VAT",null,"Tender Qty","Exempted imported value"]
[null,null,"(D7)","(D8)",null,"(D9)","(D10)","(D11)","(D12)","(D13)","(D14)","(D15)","(D16)",null,"(D17)","(D18)"]
[]
[]
[]
[{"$nulls":14}," (D19) Total exempt imported value",{"$f":"SUM(P18:P19)","v":{"v":0,"d":"R  0"}}]
[{"$nulls":13},"This total must correspond with Annex C - C 21"]
[]
[]
[null,null,"B. Imported directly by the Tenderer",{"$nulls":4},"Calculation of imported content",{"$nulls":6},"Summary"]
[null,null,"Tender item no's","Description of imported content",null,"Unit of measure","Overseas Supplier","Forign currency value as per Commercial Invoice","Tender Rate of Exchange","Local value of imports","Freight costs to port of entry","All locally incurred landing costs & duties","Total landed cost excl VAT",null,"Tender Qty","Total imported value"]
[null,null,"(D20)","(D21)",null,"(D22)","(D23)","(D24)","(D25)","(D26)","(D27)","(D28)","(D29)",null,"(D30)","(D31)"]
{"$rows_empty":7}
[{"$nulls":3},"`"]
[{"$nulls":14},"(D32)Total imported value by tenderer",{"$f":"SUM(P28:P35)","v":{"v":0,"d":"R  0"}}]
[]
[null,null,"C. Imported by a 3rd party and supplied to the Tenderer",{"$nulls":4},"Calculation of imported content",{"$nulls":6},"Summary"]
[null,null,"Description of imported content",null,"Unit of measure","Local supplier","Overseas Supplier","Forign currency value as per Commercial Invoice","Tender Rate of Exchange","Local value of imports","Freight costs to port of entry","All locally incurred landing costs & duties","Total landed cost excl VAT",null,"Quantity imported","Total imported value"]
[null,null,"(D33)",null,"(D34)","(D35)","(D36)","(D37)","(D38)","(D39)","(D40)","(D41)","(D42)",null,"(D43)","(D44)"]
[]
[]
[]
[]
[]
[null,null,"`"]
[{"$nulls":14},"(D45) Total imported value by 3rd party",{"$f":"SUM(P41:P46)","v":{"v":0,"d":"R  0"}}]
[]
[null,null,"D. Other foreign currency payments",{"$nulls":3},"Calculation of foreign currency payments",{"$nulls":8},"Summary of payments"]
[null,null,"Type of payment",null,"Local supplier making the payment","Overseas beneficiary","Foreign currency value paid","Tender Rate of Exchange",{"$nulls":7},"Local value of payments"]
[null,null,"(D46)",null,"(D47)","(D48)","(D49)","(D50)",{"$nulls":7},"(D51)"]
[]
[]
[]
[]
[{"$nulls":14},"(D52) Total of  foreign currency payments declared by tenderer and/or 3rd party"]
[null,null,"Signature of tenderer "]
[{"$nulls":14},"(D53) Total of imported content & foreign currency payments - (D32), (D45) & (D52) above",{"$f":"+P36+P47+P56","v":{"v":0,"d":"R  0"}}]
[{"$nulls":13},"This total must correspond with Annex C  - C 23"]
[null,null,"Date: "]

{"sheet":"Annex D CAT 9","index":22,"n_rows":60,"n_cols":16,"rows_kept":60,"merged":[[3,4,3,14],[7,10,9,11],[14,2,14,6],[15,3,15,4],[16,3,16,4],[17,3,17,4],[18,3,18,4],[19,3,19,4],[21,13,22,15],[25,3,25,4],[26,3,26,4],[27,3,27,4],[28,3,28,4],[29,3,29,4],[30,3,30,4],[31,3,31,4],[32,3,32,4],[33,3,33,4],[34,3,34,4],[37,2,37,6],[38,2,38,3],[39,2,39,3],[40,2,40,3],[41,2,41,3],[42,2,42,3],[43,2,43,3],[44,2,44,3],[45,2,45,3],[48,6,48,7],[49,2,49,3],[50,2,50,3],[51,2,51,3],[52,2,52,3],[53,2,53,3],[54,2,54,3],[58,13,59,15]]}
[]
[{"$nulls":15},"SATS 1286.2011"]
[null,null,"Annex D"]
[{"$nulls":4},"FAILURE TO FULLY COMPLETE, DECLARE, SIGN & DATE THIS ANNEXURE C WILL RESULT IN THE BIDDER SCORING ZERO POINTS"]
[]
[null,null,"Imported Content Declaration - Supporting Schedule to Annex C"]
[]
[null,"(D1)","Tender No.",null,"HOAC-VAR-52627",{"$nulls":5},"Note: VAT to be excluded from all calculations"]
[null,"(D2)","Tender description: ",null,"SUPPLY AND  DELIVERY OF UNIFORM CLOTHING TO TRANSNET RAIL INFRASTRUCTURE MANAGER ON AN “AS AND WHEN REQUIRED BASIS” FOR A PERIOD OF SIXTY (60) MONTHS."]
[null,"(D3)","Designated Products:",null,"Textile, Clothing, Leather and Footwear"]
[null,"(D4)","Tender Authority:",null,"TRANSNET RAIL INFRASTRUCTURE MANAGER"]
[null,"(D5)","Tendering Entity name:"]
[null,"(D6)","Tender Exchange Rate:",null,"Pula",null,"EU",{"v":9,"d":"R  9.00"},"GBP",{"v":12,"d":"R  12.00"}]
[]
[null,null,"A. Exempted imported content",{"$nulls":4},"Calculation of imported content",{"$nulls":6},"Summary"]
[null,null,"Tender item no's","Description of imported content",null,"Local supplier","Overseas Supplier","Forign currency value as per Commercial Invoice","Tender   Exchange Rate","Local value of imports","Freight costs to port of entry","All locally incurred landing costs & duties","Total landed cost excl VAT",null,"Tender Qty","Exempted imported value"]
[null,null,"(D7)","(D8)",null,"(D9)","(D10)","(D11)","(D12)","(D13)","(D14)","(D15)","(D16)",null,"(D17)","(D18)"]
[]
[]
[]
[{"$nulls":14}," (D19) Total exempt imported value",{"$f":"SUM(P18:P19)","v":{"v":0,"d":"R  0"}}]
[{"$nulls":13},"This total must correspond with Annex C - C 21"]
[]
[]
[null,null,"B. Imported directly by the Tenderer",{"$nulls":4},"Calculation of imported content",{"$nulls":6},"Summary"]
[null,null,"Tender item no's","Description of imported content",null,"Unit of measure","Overseas Supplier","Forign currency value as per Commercial Invoice","Tender Rate of Exchange","Local value of imports","Freight costs to port of entry","All locally incurred landing costs & duties","Total landed cost excl VAT",null,"Tender Qty","Total imported value"]
[null,null,"(D20)","(D21)",null,"(D22)","(D23)","(D24)","(D25)","(D26)","(D27)","(D28)","(D29)",null,"(D30)","(D31)"]
{"$rows_empty":7}
[{"$nulls":3},"`"]
[{"$nulls":14},"(D32)Total imported value by tenderer",{"$f":"SUM(P28:P35)","v":{"v":0,"d":"R  0"}}]
[]
[null,null,"C. Imported by a 3rd party and supplied to the Tenderer",{"$nulls":4},"Calculation of imported content",{"$nulls":6},"Summary"]
[null,null,"Description of imported content",null,"Unit of measure","Local supplier","Overseas Supplier","Forign currency value as per Commercial Invoice","Tender Rate of Exchange","Local value of imports","Freight costs to port of entry","All locally incurred landing costs & duties","Total landed cost excl VAT",null,"Quantity imported","Total imported value"]
[null,null,"(D33)",null,"(D34)","(D35)","(D36)","(D37)","(D38)","(D39)","(D40)","(D41)","(D42)",null,"(D43)","(D44)"]
[]
[]
[]
[]
[]
[null,null,"`"]
[{"$nulls":14},"(D45) Total imported value by 3rd party",{"$f":"SUM(P41:P46)","v":{"v":0,"d":"R  0"}}]
[]
[null,null,"D. Other foreign currency payments",{"$nulls":3},"Calculation of foreign currency payments",{"$nulls":8},"Summary of payments"]
[null,null,"Type of payment",null,"Local supplier making the payment","Overseas beneficiary","Foreign currency value paid","Tender Rate of Exchange",{"$nulls":7},"Local value of payments"]
[null,null,"(D46)",null,"(D47)","(D48)","(D49)","(D50)",{"$nulls":7},"(D51)"]
[]
[]
[]
[]
[{"$nulls":14},"(D52) Total of  foreign currency payments declared by tenderer and/or 3rd party"]
[null,null,"Signature of tenderer "]
[{"$nulls":14},"(D53) Total of imported content & foreign currency payments - (D32), (D45) & (D52) above",{"$f":"+P36+P47+P56","v":{"v":0,"d":"R  0"}}]
[{"$nulls":13},"This total must correspond with Annex C  - C 23"]
[null,null,"Date: "]

{"sheet":"Annex D CAT 10","index":23,"n_rows":60,"n_cols":16,"rows_kept":60,"merged":[[3,4,3,14],[7,10,9,11],[14,2,14,6],[15,3,15,4],[16,3,16,4],[17,3,17,4],[18,3,18,4],[19,3,19,4],[21,13,22,15],[25,3,25,4],[26,3,26,4],[27,3,27,4],[28,3,28,4],[29,3,29,4],[30,3,30,4],[31,3,31,4],[32,3,32,4],[33,3,33,4],[34,3,34,4],[37,2,37,6],[38,2,38,3],[39,2,39,3],[40,2,40,3],[41,2,41,3],[42,2,42,3],[43,2,43,3],[44,2,44,3],[45,2,45,3],[48,6,48,7],[49,2,49,3],[50,2,50,3],[51,2,51,3],[52,2,52,3],[53,2,53,3],[54,2,54,3],[58,13,59,15]]}
[]
[{"$nulls":15},"SATS 1286.2011"]
[null,null,"Annex D"]
[{"$nulls":4},"FAILURE TO FULLY COMPLETE, DECLARE, SIGN & DATE THIS ANNEXURE C WILL RESULT IN THE BIDDER SCORING ZERO POINTS"]
[]
[null,null,"Imported Content Declaration - Supporting Schedule to Annex C"]
[]
[null,"(D1)","Tender No.",null,"HOAC-VAR-52627",{"$nulls":5},"Note: VAT to be excluded from all calculations"]
[null,"(D2)","Tender description: ",null,"SUPPLY AND  DELIVERY OF UNIFORM CLOTHING TO TRANSNET RAIL INFRASTRUCTURE MANAGER ON AN “AS AND WHEN REQUIRED BASIS” FOR A PERIOD OF SIXTY (60) MONTHS."]
[null,"(D3)","Designated Products:",null,"Textile, Clothing, Leather and Footwear"]
[null,"(D4)","Tender Authority:",null,"TRANSNET RAIL INFRASTRUCTURE MANAGER"]
[null,"(D5)","Tendering Entity name:"]
[null,"(D6)","Tender Exchange Rate:",null,"Pula",null,"EU",{"v":9,"d":"R  9.00"},"GBP",{"v":12,"d":"R  12.00"}]
[]
[null,null,"A. Exempted imported content",{"$nulls":4},"Calculation of imported content",{"$nulls":6},"Summary"]
[null,null,"Tender item no's","Description of imported content",null,"Local supplier","Overseas Supplier","Forign currency value as per Commercial Invoice","Tender   Exchange Rate","Local value of imports","Freight costs to port of entry","All locally incurred landing costs & duties","Total landed cost excl VAT",null,"Tender Qty","Exempted imported value"]
[null,null,"(D7)","(D8)",null,"(D9)","(D10)","(D11)","(D12)","(D13)","(D14)","(D15)","(D16)",null,"(D17)","(D18)"]
[]
[]
[]
[{"$nulls":14}," (D19) Total exempt imported value",{"$f":"SUM(P18:P19)","v":{"v":0,"d":"R  0"}}]
[{"$nulls":13},"This total must correspond with Annex C - C 21"]
[]
[]
[null,null,"B. Imported directly by the Tenderer",{"$nulls":4},"Calculation of imported content",{"$nulls":6},"Summary"]
[null,null,"Tender item no's","Description of imported content",null,"Unit of measure","Overseas Supplier","Forign currency value as per Commercial Invoice","Tender Rate of Exchange","Local value of imports","Freight costs to port of entry","All locally incurred landing costs & duties","Total landed cost excl VAT",null,"Tender Qty","Total imported value"]
[null,null,"(D20)","(D21)",null,"(D22)","(D23)","(D24)","(D25)","(D26)","(D27)","(D28)","(D29)",null,"(D30)","(D31)"]
{"$rows_empty":7}
[{"$nulls":3},"`"]
[{"$nulls":14},"(D32)Total imported value by tenderer",{"$f":"SUM(P28:P35)","v":{"v":0,"d":"R  0"}}]
[]
[null,null,"C. Imported by a 3rd party and supplied to the Tenderer",{"$nulls":4},"Calculation of imported content",{"$nulls":6},"Summary"]
[null,null,"Description of imported content",null,"Unit of measure","Local supplier","Overseas Supplier","Forign currency value as per Commercial Invoice","Tender Rate of Exchange","Local value of imports","Freight costs to port of entry","All locally incurred landing costs & duties","Total landed cost excl VAT",null,"Quantity imported","Total imported value"]
[null,null,"(D33)",null,"(D34)","(D35)","(D36)","(D37)","(D38)","(D39)","(D40)","(D41)","(D42)",null,"(D43)","(D44)"]
[]
[]
[]
[]
[]
[null,null,"`"]
[{"$nulls":14},"(D45) Total imported value by 3rd party",{"$f":"SUM(P41:P46)","v":{"v":0,"d":"R  0"}}]
[]
[null,null,"D. Other foreign currency payments",{"$nulls":3},"Calculation of foreign currency payments",{"$nulls":8},"Summary of payments"]
[null,null,"Type of payment",null,"Local supplier making the payment","Overseas beneficiary","Foreign currency value paid","Tender Rate of Exchange",{"$nulls":7},"Local value of payments"]
[null,null,"(D46)",null,"(D47)","(D48)","(D49)","(D50)",{"$nulls":7},"(D51)"]
[]
[]
[]
[]
[{"$nulls":14},"(D52) Total of  foreign currency payments declared by tenderer and/or 3rd party"]
[null,null,"Signature of tenderer"]
[{"$nulls":14},"(D53) Total of imported content & foreign currency payments - (D32), (D45) & (D52) above",{"$f":"+P36+P47+P56","v":{"v":0,"d":"R  0"}}]
[{"$nulls":13},"This total must correspond with Annex C  - C 23"]
[null,null,"Date: "]

{"sheet":"Annex D CAT 11","index":24,"n_rows":60,"n_cols":16,"rows_kept":60,"merged":[[3,4,3,14],[7,10,9,11],[14,2,14,6],[15,3,15,4],[16,3,16,4],[17,3,17,4],[18,3,18,4],[19,3,19,4],[21,13,22,15],[25,3,25,4],[26,3,26,4],[27,3,27,4],[28,3,28,4],[29,3,29,4],[30,3,30,4],[31,3,31,4],[32,3,32,4],[33,3,33,4],[34,3,34,4],[37,2,37,6],[38,2,38,3],[39,2,39,3],[40,2,40,3],[41,2,41,3],[42,2,42,3],[43,2,43,3],[44,2,44,3],[45,2,45,3],[48,6,48,7],[49,2,49,3],[50,2,50,3],[51,2,51,3],[52,2,52,3],[53,2,53,3],[54,2,54,3],[58,13,59,15]]}
[]
[{"$nulls":15},"SATS 1286.2011"]
[null,null,"Annex D"]
[{"$nulls":4},"FAILURE TO FULLY COMPLETE, DECLARE, SIGN & DATE THIS ANNEXURE C WILL RESULT IN THE BIDDER SCORING ZERO POINTS"]
[]
[null,null,"Imported Content Declaration - Supporting Schedule to Annex C"]
[]
[null,"(D1)","Tender No.",null,"HOAC-VAR-52627",{"$nulls":5},"Note: VAT to be excluded from all calculations"]
[null,"(D2)","Tender description: ",null,"SUPPLY AND  DELIVERY OF UNIFORM CLOTHING TO TRANSNET RAIL INFRASTRUCTURE MANAGER ON AN “AS AND WHEN REQUIRED BASIS” FOR A PERIOD OF SIXTY (60) MONTHS."]
[null,"(D3)","Designated Products:",null,"Textile, Clothing, Leather and Footwear"]
[null,"(D4)","Tender Authority:",null,"TRANSNET RAIL INFRASTRUCTURE MANAGER"]
[null,"(D5)","Tendering Entity name:"]
[null,"(D6)","Tender Exchange Rate:",null,"Pula",null,"EU",{"v":9,"d":"R  9.00"},"GBP",{"v":12,"d":"R  12.00"}]
[]
[null,null,"A. Exempted imported content",{"$nulls":4},"Calculation of imported content",{"$nulls":6},"Summary"]
[null,null,"Tender item no's","Description of imported content",null,"Local supplier","Overseas Supplier","Forign currency value as per Commercial Invoice","Tender   Exchange Rate","Local value of imports","Freight costs to port of entry","All locally incurred landing costs & duties","Total landed cost excl VAT",null,"Tender Qty","Exempted imported value"]
[null,null,"(D7)","(D8)",null,"(D9)","(D10)","(D11)","(D12)","(D13)","(D14)","(D15)","(D16)",null,"(D17)","(D18)"]
[]
[]
[]
[{"$nulls":14}," (D19) Total exempt imported value",{"$f":"SUM(P18:P19)","v":{"v":0,"d":"R  0"}}]
[{"$nulls":13},"This total must correspond with Annex C - C 21"]
[]
[]
[null,null,"B. Imported directly by the Tenderer",{"$nulls":4},"Calculation of imported content",{"$nulls":6},"Summary"]
[null,null,"Tender item no's","Description of imported content",null,"Unit of measure","Overseas Supplier","Forign currency value as per Commercial Invoice","Tender Rate of Exchange","Local value of imports","Freight costs to port of entry","All locally incurred landing costs & duties","Total landed cost excl VAT",null,"Tender Qty","Total imported value"]
[null,null,"(D20)","(D21)",null,"(D22)","(D23)","(D24)","(D25)","(D26)","(D27)","(D28)","(D29)",null,"(D30)","(D31)"]
{"$rows_empty":7}
[{"$nulls":3},"`"]
[{"$nulls":14},"(D32)Total imported value by tenderer",{"$f":"SUM(P28:P35)","v":{"v":0,"d":"R  0"}}]
[]
[null,null,"C. Imported by a 3rd party and supplied to the Tenderer",{"$nulls":4},"Calculation of imported content",{"$nulls":6},"Summary"]
[null,null,"Description of imported content",null,"Unit of measure","Local supplier","Overseas Supplier","Forign currency value as per Commercial Invoice","Tender Rate of Exchange","Local value of imports","Freight costs to port of entry","All locally incurred landing costs & duties","Total landed cost excl VAT",null,"Quantity imported","Total imported value"]
[null,null,"(D33)",null,"(D34)","(D35)","(D36)","(D37)","(D38)","(D39)","(D40)","(D41)","(D42)",null,"(D43)","(D44)"]
[]
[]
[]
[]
[]
[null,null,"`"]
[{"$nulls":14},"(D45) Total imported value by 3rd party",{"$f":"SUM(P41:P46)","v":{"v":0,"d":"R  0"}}]
[]
[null,null,"D. Other foreign currency payments",{"$nulls":3},"Calculation of foreign currency payments",{"$nulls":8},"Summary of payments"]
[null,null,"Type of payment",null,"Local supplier making the payment","Overseas beneficiary","Foreign currency value paid","Tender Rate of Exchange",{"$nulls":7},"Local value of payments"]
[null,null,"(D46)",null,"(D47)","(D48)","(D49)","(D50)",{"$nulls":7},"(D51)"]
[]
[]
[]
[]
[{"$nulls":14},"(D52) Total of  foreign currency payments declared by tenderer and/or 3rd party"]
[null,null,"Signature of tenderer"]
[{"$nulls":14},"(D53) Total of imported content & foreign currency payments - (D32), (D45) & (D52) above",{"$f":"+P36+P47+P56","v":{"v":0,"d":"R  0"}}]
[{"$nulls":13},"This total must correspond with Annex C  - C 23"]
[null,null,"Date: "]

{"sheet":"Annex D CAT 12","index":25,"n_rows":60,"n_cols":16,"rows_kept":60,"merged":[[3,4,3,14],[7,10,9,11],[14,2,14,6],[15,3,15,4],[16,3,16,4],[17,3,17,4],[18,3,18,4],[19,3,19,4],[21,13,22,15],[25,3,25,4],[26,3,26,4],[27,3,27,4],[28,3,28,4],[29,3,29,4],[30,3,30,4],[31,3,31,4],[32,3,32,4],[33,3,33,4],[34,3,34,4],[37,2,37,6],[38,2,38,3],[39,2,39,3],[40,2,40,3],[41,2,41,3],[42,2,42,3],[43,2,43,3],[44,2,44,3],[45,2,45,3],[48,6,48,7],[49,2,49,3],[50,2,50,3],[51,2,51,3],[52,2,52,3],[53,2,53,3],[54,2,54,3],[58,13,59,15]]}
[]
[{"$nulls":15},"SATS 1286.2011"]
[null,null,"Annex D"]
[{"$nulls":4},"FAILURE TO FULLY COMPLETE, DECLARE, SIGN & DATE THIS ANNEXURE C WILL RESULT IN THE BIDDER SCORING ZERO POINTS"]
[]
[null,null,"Imported Content Declaration - Supporting Schedule to Annex C"]
[]
[null,"(D1)","Tender No.",null,"HOAC-VAR-52627",{"$nulls":5},"Note: VAT to be excluded from all calculations"]
[null,"(D2)","Tender description: ",null,"SUPPLY AND  DELIVERY OF UNIFORM CLOTHING TO TRANSNET RAIL INFRASTRUCTURE MANAGER ON AN “AS AND WHEN REQUIRED BASIS” FOR A PERIOD OF SIXTY (60) MONTHS."]
[null,"(D3)","Designated Products:",null,"Textile, Clothing, Leather and Footwear"]
[null,"(D4)","Tender Authority:",null,"TRANSNET RAIL INFRASTRUCTURE MANAGER"]
[null,"(D5)","Tendering Entity name:"]
[null,"(D6)","Tender Exchange Rate:",null,"Pula",null,"EU",{"v":9,"d":"R  9.00"},"GBP",{"v":12,"d":"R  12.00"}]
[]
[null,null,"A. Exempted imported content",{"$nulls":4},"Calculation of imported content",{"$nulls":6},"Summary"]
[null,null,"Tender item no's","Description of imported content",null,"Local supplier","Overseas Supplier","Forign currency value as per Commercial Invoice","Tender   Exchange Rate","Local value of imports","Freight costs to port of entry","All locally incurred landing costs & duties","Total landed cost excl VAT",null,"Tender Qty","Exempted imported value"]
[null,null,"(D7)","(D8)",null,"(D9)","(D10)","(D11)","(D12)","(D13)","(D14)","(D15)","(D16)",null,"(D17)","(D18)"]
[]
[]
[]
[{"$nulls":14}," (D19) Total exempt imported value",{"$f":"SUM(P18:P19)","v":{"v":0,"d":"R  0"}}]
[{"$nulls":13},"This total must correspond with Annex C - C 21"]
[]
[]
[null,null,"B. Imported directly by the Tenderer",{"$nulls":4},"Calculation of imported content",{"$nulls":6},"Summary"]
[null,null,"Tender item no's","Description of imported content",null,"Unit of measure","Overseas Supplier","Forign currency value as per Commercial Invoice","Tender Rate of Exchange","Local value of imports","Freight costs to port of entry","All locally incurred landing costs & duties","Total landed cost excl VAT",null,"Tender Qty","Total imported value"]
[null,null,"(D20)","(D21)",null,"(D22)","(D23)","(D24)","(D25)","(D26)","(D27)","(D28)","(D29)",null,"(D30)","(D31)"]
{"$rows_empty":7}
[{"$nulls":3},"`"]
[{"$nulls":14},"(D32)Total imported value by tenderer",{"$f":"SUM(P28:P35)","v":{"v":0,"d":"R  0"}}]
[]
[null,null,"C. Imported by a 3rd party and supplied to the Tenderer",{"$nulls":4},"Calculation of imported content",{"$nulls":6},"Summary"]
[null,null,"Description of imported content",null,"Unit of measure","Local supplier","Overseas Supplier","Forign currency value as per Commercial Invoice","Tender Rate of Exchange","Local value of imports","Freight costs to port of entry","All locally incurred landing costs & duties","Total landed cost excl VAT",null,"Quantity imported","Total imported value"]
[null,null,"(D33)",null,"(D34)","(D35)","(D36)","(D37)","(D38)","(D39)","(D40)","(D41)","(D42)",null,"(D43)","(D44)"]
[]
[]
[]
[]
[]
[null,null,"`"]
[{"$nulls":14},"(D45) Total imported value by 3rd party",{"$f":"SUM(P41:P46)","v":{"v":0,"d":"R  0"}}]
[]
[null,null,"D. Other foreign currency payments",{"$nulls":3},"Calculation of foreign currency payments",{"$nulls":8},"Summary of payments"]
[null,null,"Type of payment",null,"Local supplier making the payment","Overseas beneficiary","Foreign currency value paid","Tender Rate of Exchange",{"$nulls":7},"Local value of payments"]
[null,null,"(D46)",null,"(D47)","(D48)","(D49)","(D50)",{"$nulls":7},"(D51)"]
[]
[]
[]
[]
[{"$nulls":14},"(D52) Total of  foreign currency payments declared by tenderer and/or 3rd party"]
[null,null,"Signature of tenderer "]
[{"$nulls":14},"(D53) Total of imported content & foreign currency payments - (D32), (D45) & (D52) above",{"$f":"+P36+P47+P56","v":{"v":0,"d":"R  0"}}]
[{"$nulls":13},"This total must correspond with Annex C  - C 23"]
[null,null,"Date: "]

{"sheet":"Annex D CAT 13","index":26,"n_rows":60,"n_cols":16,"rows_kept":60,"merged":[[3,4,3,14],[7,10,9,11],[14,2,14,6],[15,3,15,4],[16,3,16,4],[17,3,17,4],[18,3,18,4],[19,3,19,4],[21,13,22,15],[25,3,25,4],[26,3,26,4],[27,3,27,4],[28,3,28,4],[29,3,29,4],[30,3,30,4],[31,3,31,4],[32,3,32,4],[33,3,33,4],[34,3,34,4],[37,2,37,6],[38,2,38,3],[39,2,39,3],[40,2,40,3],[41,2,41,3],[42,2,42,3],[43,2,43,3],[44,2,44,3],[45,2,45,3],[48,6,48,7],[49,2,49,3],[50,2,50,3],[51,2,51,3],[52,2,52,3],[53,2,53,3],[54,2,54,3],[58,13,59,15]]}
[]
[{"$nulls":15},"SATS 1286.2011"]
[null,null,"Annex D"]
[{"$nulls":4},"FAILURE TO FULLY COMPLETE, DECLARE, SIGN & DATE THIS ANNEXURE C WILL RESULT IN THE BIDDER SCORING ZERO POINTS"]
[]
[null,null,"Imported Content Declaration - Supporting Schedule to Annex C"]
[]
[null,"(D1)","Tender No.",null,"HOAC-VAR-52627",{"$nulls":5},"Note: VAT to be excluded from all calculations"]
[null,"(D2)","Tender description: ",null,"SUPPLY AND  DELIVERY OF UNIFORM CLOTHING TO TRANSNET RAIL INFRASTRUCTURE MANAGER ON AN “AS AND WHEN REQUIRED BASIS” FOR A PERIOD OF SIXTY (60) MONTHS."]
[null,"(D3)","Designated Products:",null,"Textile, Clothing, Leather and Footwear"]
[null,"(D4)","Tender Authority:",null,"TRANSNET RAIL INFRASTRUCTURE MANAGER"]
[null,"(D5)","Tendering Entity name:"]
[null,"(D6)","Tender Exchange Rate:",null,"Pula",null,"EU",{"v":9,"d":"R  9.00"},"GBP",{"v":12,"d":"R  12.00"}]
[]
[null,null,"A. Exempted imported content",{"$nulls":4},"Calculation of imported content",{"$nulls":6},"Summary"]
[null,null,"Tender item no's","Description of imported content",null,"Local supplier","Overseas Supplier","Forign currency value as per Commercial Invoice","Tender   Exchange Rate","Local value of imports","Freight costs to port of entry","All locally incurred landing costs & duties","Total landed cost excl VAT",null,"Tender Qty","Exempted imported value"]
[null,null,"(D7)","(D8)",null,"(D9)","(D10)","(D11)","(D12)","(D13)","(D14)","(D15)","(D16)",null,"(D17)","(D18)"]
[]
[]
[]
[{"$nulls":14}," (D19) Total exempt imported value",{"$f":"SUM(P18:P19)","v":{"v":0,"d":"R  0"}}]
[{"$nulls":13},"This total must correspond with Annex C - C 21"]
[]
[]
[null,null,"B. Imported directly by the Tenderer",{"$nulls":4},"Calculation of imported content",{"$nulls":6},"Summary"]
[null,null,"Tender item no's","Description of imported content",null,"Unit of measure","Overseas Supplier","Forign currency value as per Commercial Invoice","Tender Rate of Exchange","Local value of imports","Freight costs to port of entry","All locally incurred landing costs & duties","Total landed cost excl VAT",null,"Tender Qty","Total imported value"]
[null,null,"(D20)","(D21)",null,"(D22)","(D23)","(D24)","(D25)","(D26)","(D27)","(D28)","(D29)",null,"(D30)","(D31)"]
{"$rows_empty":7}
[{"$nulls":3},"`"]
[{"$nulls":14},"(D32)Total imported value by tenderer",{"$f":"SUM(P28:P35)","v":{"v":0,"d":"R  0"}}]
[]
[null,null,"C. Imported by a 3rd party and supplied to the Tenderer",{"$nulls":4},"Calculation of imported content",{"$nulls":6},"Summary"]
[null,null,"Description of imported content",null,"Unit of measure","Local supplier","Overseas Supplier","Forign currency value as per Commercial Invoice","Tender Rate of Exchange","Local value of imports","Freight costs to port of entry","All locally incurred landing costs & duties","Total landed cost excl VAT",null,"Quantity imported","Total imported value"]
[null,null,"(D33)",null,"(D34)","(D35)","(D36)","(D37)","(D38)","(D39)","(D40)","(D41)","(D42)",null,"(D43)","(D44)"]
[]
[]
[]
[]
[]
[null,null,"`"]
[{"$nulls":14},"(D45) Total imported value by 3rd party",{"$f":"SUM(P41:P46)","v":{"v":0,"d":"R  0"}}]
[]
[null,null,"D. Other foreign currency payments",{"$nulls":3},"Calculation of foreign currency payments",{"$nulls":8},"Summary of payments"]
[null,null,"Type of payment",null,"Local supplier making the payment","Overseas beneficiary","Foreign currency value paid","Tender Rate of Exchange",{"$nulls":7},"Local value of payments"]
[null,null,"(D46)",null,"(D47)","(D48)","(D49)","(D50)",{"$nulls":7},"(D51)"]
[]
[]
[]
[]
[{"$nulls":14},"(D52) Total of  foreign currency payments declared by tenderer and/or 3rd party"]
[null,null,"Signature of tenderer "]
[{"$nulls":14},"(D53) Total of imported content & foreign currency payments - (D32), (D45) & (D52) above",{"$f":"+P36+P47+P56","v":{"v":0,"d":"R  0"}}]
[{"$nulls":13},"This total must correspond with Annex C  - C 23"]
[null,null,"Date: "]

{"sheet":"Annex D CAT 14","index":27,"n_rows":60,"n_cols":16,"rows_kept":60,"merged":[[3,4,3,14],[7,10,9,11],[14,2,14,6],[15,3,15,4],[16,3,16,4],[17,3,17,4],[18,3,18,4],[19,3,19,4],[21,13,22,15],[25,3,25,4],[26,3,26,4],[27,3,27,4],[28,3,28,4],[29,3,29,4],[30,3,30,4],[31,3,31,4],[32,3,32,4],[33,3,33,4],[34,3,34,4],[37,2,37,6],[38,2,38,3],[39,2,39,3],[40,2,40,3],[41,2,41,3],[42,2,42,3],[43,2,43,3],[44,2,44,3],[45,2,45,3],[48,6,48,7],[49,2,49,3],[50,2,50,3],[51,2,51,3],[52,2,52,3],[53,2,53,3],[54,2,54,3],[58,13,59,15]]}
[]
[{"$nulls":15},"SATS 1286.2011"]
[null,null,"Annex D"]
[{"$nulls":4},"FAILURE TO FULLY COMPLETE, DECLARE, SIGN & DATE THIS ANNEXURE C WILL RESULT IN THE BIDDER SCORING ZERO POINTS"]
[]
[null,null,"Imported Content Declaration - Supporting Schedule to Annex C"]
[]
[null,"(D1)","Tender No.",null,"HOAC-VAR-52627",{"$nulls":5},"Note: VAT to be excluded from all calculations"]
[null,"(D2)","Tender description: ",null,"SUPPLY AND  DELIVERY OF UNIFORM CLOTHING TO TRANSNET RAIL INFRASTRUCTURE MANAGER ON AN “AS AND WHEN REQUIRED BASIS” FOR A PERIOD OF SIXTY (60) MONTHS."]
[null,"(D3)","Designated Products:",null,"Textile, Clothing, Leather and Footwear"]
[null,"(D4)","Tender Authority:",null,"TRANSNET RAIL INFRASTRUCTURE MANAGER"]
[null,"(D5)","Tendering Entity name:"]
[null,"(D6)","Tender Exchange Rate:",null,"Pula",null,"EU",{"v":9,"d":"R  9.00"},"GBP",{"v":12,"d":"R  12.00"}]
[]
[null,null,"A. Exempted imported content",{"$nulls":4},"Calculation of imported content",{"$nulls":6},"Summary"]
[null,null,"Tender item no's","Description of imported content",null,"Local supplier","Overseas Supplier","Forign currency value as per Commercial Invoice","Tender   Exchange Rate","Local value of imports","Freight costs to port of entry","All locally incurred landing costs & duties","Total landed cost excl VAT",null,"Tender Qty","Exempted imported value"]
[null,null,"(D7)","(D8)",null,"(D9)","(D10)","(D11)","(D12)","(D13)","(D14)","(D15)","(D16)",null,"(D17)","(D18)"]
[]
[]
[]
[{"$nulls":14}," (D19) Total exempt imported value",{"$f":"SUM(P18:P19)","v":{"v":0,"d":"R  0"}}]
[{"$nulls":13},"This total must correspond with Annex C - C 21"]
[]
[]
[null,null,"B. Imported directly by the Tenderer",{"$nulls":4},"Calculation of imported content",{"$nulls":6},"Summary"]
[null,null,"Tender item no's","Description of imported content",null,"Unit of measure","Overseas Supplier","Forign currency value as per Commercial Invoice","Tender Rate of Exchange","Local value of imports","Freight costs to port of entry","All locally incurred landing costs & duties","Total landed cost excl VAT",null,"Tender Qty","Total imported value"]
[null,null,"(D20)","(D21)",null,"(D22)","(D23)","(D24)","(D25)","(D26)","(D27)","(D28)","(D29)",null,"(D30)","(D31)"]
{"$rows_empty":7}
[{"$nulls":3},"`"]
[{"$nulls":14},"(D32)Total imported value by tenderer",{"$f":"SUM(P28:P35)","v":{"v":0,"d":"R  0"}}]
[]
[null,null,"C. Imported by a 3rd party and supplied to the Tenderer",{"$nulls":4},"Calculation of imported content",{"$nulls":6},"Summary"]
[null,null,"Description of imported content",null,"Unit of measure","Local supplier","Overseas Supplier","Forign currency value as per Commercial Invoice","Tender Rate of Exchange","Local value of imports","Freight costs to port of entry","All locally incurred landing costs & duties","Total landed cost excl VAT",null,"Quantity imported","Total imported value"]
[null,null,"(D33)",null,"(D34)","(D35)","(D36)","(D37)","(D38)","(D39)","(D40)","(D41)","(D42)",null,"(D43)","(D44)"]
[]
[]
[]
[]
[]
[null,null,"`"]
[{"$nulls":14},"(D45) Total imported value by 3rd party",{"$f":"SUM(P41:P46)","v":{"v":0,"d":"R  0"}}]
[]
[null,null,"D. Other foreign currency payments",{"$nulls":3},"Calculation of foreign currency payments",{"$nulls":8},"Summary of payments"]
[null,null,"Type of payment",null,"Local supplier making the payment","Overseas beneficiary","Foreign currency value paid","Tender Rate of Exchange",{"$nulls":7},"Local value of payments"]
[null,null,"(D46)",null,"(D47)","(D48)","(D49)","(D50)",{"$nulls":7},"(D51)"]
[]
[]
[]
[]
[{"$nulls":14},"(D52) Total of  foreign currency payments declared by tenderer and/or 3rd party"]
[null,null,"Signature of tenderer"]
[{"$nulls":14},"(D53) Total of imported content & foreign currency payments - (D32), (D45) & (D52) above",{"$f":"+P36+P47+P56","v":{"v":0,"d":"R  0"}}]
[{"$nulls":13},"This total must correspond with Annex C  - C 23"]
[null,null,"Date: "]

{"sheet":"Annex E CAT 1","index":28,"n_rows":44,"n_cols":10,"rows_kept":44,"merged":[[2,2,2,8],[3,3,3,8],[5,2,5,9],[7,7,8,8],[14,4,14,6],[15,4,15,6],[16,4,16,6],[17,4,17,6],[27,4,27,6],[37,7,37,8]]}
[]
[{"$nulls":8},"SATS 1286.2011"]
[null,null,"Annex E"]
[{"$nulls":3},"FAILURE TO FULLY COMPLETE, DECLARE, SIGN & DATE THIS ANNEXURE C WILL RESULT IN THE BIDDER SCORING ZERO POINTS"]
[]
[null,null,"Local Content Declaration - Supporting Schedule to Annex C"]
[]
[null,"(E1)","Tender No.",null,"HOAC-VAR-52627",null,null,"Note: VAT to be excluded from all calculations"]
[null,"(E2)","Tender description: ",null,"SUPPLY AND  DELIVERY OF UNIFORM CLOTHING TO TRANSNET RAIL INFRASTRUCTURE MANAGER ON AN “AS AND WHEN REQUIRED BASIS” FOR A PERIOD OF SIXTY (60) MONTHS."]
[null,"(E3)","Designated products:",null,"Textile, Clothing, Leather and Footwear"]
[null,"(E4)","Tender Authority:",null,"TRANSNET RAIL INFRASTRUCTURE MANAGER"]
[null,"(E5)","Tendering Entity name:"]
[]
[]
[{"$nulls":3},"Local Products (Goods, Services and Works)","Description of items purchased",null,null,"Local suppliers","Value","% of LC"]
[{"$nulls":4},"(E6)",null,null,"(E7)","(E8)"]
[{"$nulls":4},"TROUSERS, UTILITY (Male)"]
[{"$nulls":4},"TROUSERS, UTILITY (female)"]
[{"$nulls":4},"SHORTS, UNISEX"]
[{"$nulls":4},"SHIRT, UTILITY (Short Sleeve)"]
[{"$nulls":4},"TROUSERS, UTILITY (Hazmat) (Male)"]
[{"$nulls":4},"SLACKS, WOMEN'S"]
[{"$nulls":4},"SHIRT, UTILITY (Open Neck Male)"]
[{"$nulls":4},"TROUSERS, UTILITY (Combat Male)"]
[{"$nulls":4},"TROUSERS, UTILITY (Combat Female)"]
[{"$nulls":4},"SHIRT, UTILITY, Combat"]
[{"$nulls":4},"JACKET, UTILITY"]
[]
[{"$nulls":7},"(E9) Total local products (Goods, Services and Works)",{"$f":"SUM(I17:I28)","v":{"v":0,"d":"R 0"}}]
[]
[null,null,"(E10)","Manpower costs","( Tenderer's manpower cost)",{"$nulls":3},{"v":0,"d":"R 0"}]
[]
[null,null,"(E11)","Factory overheads","(Rental, depreciation & amortisation, utility costs, consumables etc.)",{"$nulls":3},{"v":0,"d":"R 0"}]
[]
[null,null,"(E12)","Administration overheads and mark-up",null,"(Marketing, insurance, financing, interest etc.)",null,null,{"v":0,"d":"R 0"}]
[]
[{"$nulls":7},"(E13)  Total local content",{"v":0,"d":"R 0"}]
[{"$nulls":7},"This total must correspond with Annex C  - C24"]
[]
[null,null,"Signature of tenderer "]
[]
[]
[]
[null,null,"Date: "]

{"sheet":"Annex E CAT 2","index":29,"n_rows":44,"n_cols":10,"rows_kept":44,"merged":[[2,2,2,8],[3,3,3,8],[5,2,5,9],[7,7,8,8],[14,4,14,6],[15,4,15,6],[19,4,19,6],[20,4,20,6],[21,4,21,6],[22,4,22,6],[23,4,23,6],[24,4,24,6],[25,4,25,6],[26,4,26,6],[27,4,27,6],[37,7,37,8]]}
[]
[{"$nulls":8},"SATS 1286.2011"]
[null,null,"Annex E"]
[{"$nulls":3},"FAILURE TO FULLY COMPLETE, DECLARE, SIGN & DATE THIS ANNEXURE C WILL RESULT IN THE BIDDER SCORING ZERO POINTS"]
[]
[null,null,"Local Content Declaration - Supporting Schedule to Annex C"]
[]
[null,"(E1)","Tender No.",null,"HOAC-VAR-52627",null,null,"Note: VAT to be excluded from all calculations"]
[null,"(E2)","Tender description: ",null,"SUPPLY AND  DELIVERY OF UNIFORM CLOTHING TO TRANSNET RAIL INFRASTRUCTURE MANAGER ON AN “AS AND WHEN REQUIRED BASIS” FOR A PERIOD OF SIXTY (60) MONTHS."]
[null,"(E3)","Designated products:",null,"Textile, Clothing, Leather and Footwear"]
[null,"(E4)","Tender Authority:",null,"TRANSNET RAIL INFRASTRUCTURE MANAGER"]
[null,"(E5)","Tendering Entity name:"]
[]
[]
[{"$nulls":3},"Local Products (Goods, Services and Works)","Description of items purchased",null,null,"Local suppliers","Value","% of LC"]
[{"$nulls":4},"(E6)",null,null,"(E7)","(E8)"]
[{"$nulls":4},"TROUSERS UTILITYs (Denim)"]
[{"$nulls":4},"TROUSERS UTLTY (Denim)"]
[{"$nulls":4},"SKIRT WOMAN (Denim)"]
{"$rows_empty":9}
[{"$nulls":7},"(E9) Total local products (Goods, Services and Works)",{"$f":"SUM(I17:I28)","v":{"v":0,"d":"R 0"}}]
[]
[null,null,"(E10)","Manpower costs","( Tenderer's manpower cost)",{"$nulls":3},{"v":0,"d":"R 0"}]
[]
[null,null,"(E11)","Factory overheads","(Rental, depreciation & amortisation, utility costs, consumables etc.)",{"$nulls":3},{"v":0,"d":"R 0"}]
[]
[null,null,"(E12)","Administration overheads and mark-up",null,"(Marketing, insurance, financing, interest etc.)",null,null,{"v":0,"d":"R 0"}]
[]
[{"$nulls":7},"(E13)  Total local content",{"v":0,"d":"R 0"}]
[{"$nulls":7},"This total must correspond with Annex C  - C24"]
[]
[null,null,"Signature of tenderer "]
[]
[]
[]
[null,null,"Date: "]

{"sheet":"Annex E CAT 3","index":30,"n_rows":44,"n_cols":10,"rows_kept":44,"merged":[[2,2,2,8],[3,3,3,8],[5,2,5,9],[7,7,8,8],[14,4,14,6],[15,4,15,6],[23,4,23,6],[24,4,24,6],[25,4,25,6],[26,4,26,6],[27,4,27,6],[37,7,37,8]]}
[]
[{"$nulls":8},"SATS 1286.2011"]
[null,null,"Annex E"]
[{"$nulls":3},"FAILURE TO FULLY COMPLETE, DECLARE, SIGN & DATE THIS ANNEXURE C WILL RESULT IN THE BIDDER SCORING ZERO POINTS"]
[]
[null,null,"Local Content Declaration - Supporting Schedule to Annex C"]
[]
[null,"(E1)","Tender No.",null,"HOAC-VAR-52627",null,null,"Note: VAT to be excluded from all calculations"]
[null,"(E2)","Tender description: ",null,"SUPPLY AND  DELIVERY OF UNIFORM CLOTHING TO TRANSNET RAIL INFRASTRUCTURE MANAGER ON AN “AS AND WHEN REQUIRED BASIS” FOR A PERIOD OF SIXTY (60) MONTHS."]
[null,"(E3)","Designated products:",null,"Textile, Clothing, Leather and Footwear"]
[null,"(E4)","Tender Authority:",null,"TRANSNET RAIL INFRASTRUCTURE MANAGER"]
[null,"(E5)","Tendering Entity name:"]
[]
[]
[{"$nulls":3},"Local Products (Goods, Services and Works)","Description of items purchased",null,null,"Local suppliers","Value","% of LC"]
[{"$nulls":4},"(E6)",null,null,"(E7)","(E8)"]
[{"$nulls":4},"CAP UTILITY"]
[{"$nulls":4},"HAT, BUSH (FLOPPY)"]
[{"$nulls":4},"CAP, UTILITY (Base Ball)"]
[{"$nulls":4},"CAP, UTILITY (Base Ball)"]
[{"$nulls":4},"CAP UTILITY (Base Ball)"]
[{"$nulls":4},"HEAD DRESS, Beret"]
[{"$nulls":4},"LADIES FELT HAT"]
[]
[]
[]
[]
[]
[{"$nulls":7},"(E9) Total local products (Goods, Services and Works)",{"$f":"SUM(I17:I28)","v":{"v":0,"d":"R 0"}}]
[]
[null,null,"(E10)","Manpower costs","( Tenderer's manpower cost)",{"$nulls":3},{"v":0,"d":"R 0"}]
[]
[null,null,"(E11)","Factory overheads","(Rental, depreciation & amortisation, utility costs, consumables etc.)",{"$nulls":3},{"v":0,"d":"R 0"}]
[]
[null,null,"(E12)","Administration overheads and mark-up",null,"(Marketing, insurance, financing, interest etc.)",null,null,{"v":0,"d":"R 0"}]
[]
[{"$nulls":7},"(E13)  Total local content",{"v":0,"d":"R 0"}]
[{"$nulls":7},"This total must correspond with Annex C  - C24"]
[]
[null,null,"Signature of tenderer "]
[]
[]
[]
[null,null,"Date: "]

{"sheet":"Annex E CAT 4","index":31,"n_rows":44,"n_cols":10,"rows_kept":44,"merged":[[2,2,2,8],[3,3,3,8],[5,2,5,9],[7,7,8,8],[14,4,14,6],[15,4,15,6],[19,4,19,6],[20,4,20,6],[21,4,21,6],[22,4,22,6],[23,4,23,6],[24,4,24,6],[25,4,25,6],[26,4,26,6],[27,4,27,6],[37,7,37,8]]}
[]
[{"$nulls":8},"SATS 1286.2011"]
[null,null,"Annex E"]
[{"$nulls":3},"FAILURE TO FULLY COMPLETE, DECLARE, SIGN & DATE THIS ANNEXURE C WILL RESULT IN THE BIDDER SCORING ZERO POINTS"]
[]
[null,null,"Local Content Declaration - Supporting Schedule to Annex C"]
[]
[null,"(E1)","Tender No.",null,"HOAC-VAR-52627",null,null,"Note: VAT to be excluded from all calculations"]
[null,"(E2)","Tender description: ",null,"SUPPLY AND  DELIVERY OF UNIFORM CLOTHING TO TRANSNET RAIL INFRASTRUCTURE MANAGER ON AN “AS AND WHEN REQUIRED BASIS” FOR A PERIOD OF SIXTY (60) MONTHS."]
[null,"(E3)","Designated products:",null,"Textile, Clothing, Leather and Footwear"]
[null,"(E4)","Tender Authority:",null,"TRANSNET RAIL INFRASTRUCTURE MANAGER"]
[null,"(E5)","Tendering Entity name:"]
[]
[]
[{"$nulls":3},"Local Products (Goods, Services and Works)","Description of items purchased",null,null,"Local suppliers","Value","% of LC"]
[{"$nulls":4},"(E6)",null,null,"(E7)","(E8)"]
[{"$nulls":4},"SOCKS (Half Hose)"]
[{"$nulls":4},"SOCKS (Quarter Hose)"]
[{"$nulls":4},"SOCKS (Anklet)"]
{"$rows_empty":9}
[{"$nulls":7},"(E9) Total local products (Goods, Services and Works)",{"$f":"SUM(I17:I28)","v":{"v":0,"d":"R 0"}}]
[]
[null,null,"(E10)","Manpower costs","( Tenderer's manpower cost)",{"$nulls":3},{"v":0,"d":"R 0"}]
[]
[null,null,"(E11)","Factory overheads","(Rental, depreciation & amortisation, utility costs, consumables etc.)",{"$nulls":3},{"v":0,"d":"R 0"}]
[]
[null,null,"(E12)","Administration overheads and mark-up",null,"(Marketing, insurance, financing, interest etc.)",null,null,{"v":0,"d":"R 0"}]
[]
[{"$nulls":7},"(E13)  Total local content",{"v":0,"d":"R 0"}]
[{"$nulls":7},"This total must correspond with Annex C  - C24"]
[]
[null,null,"Signature of tenderer "]
[]
[]
[]
[null,null,"Date: "]

{"sheet":"Annex E CAT 5","index":32,"n_rows":44,"n_cols":10,"rows_kept":44,"merged":[[2,2,2,8],[3,3,3,8],[5,2,5,9],[7,7,8,8],[14,4,14,6],[15,4,15,6],[21,4,21,6],[22,4,22,6],[23,4,23,6],[24,4,24,6],[25,4,25,6],[26,4,26,6],[27,4,27,6],[37,7,37,8]]}
[]
[{"$nulls":8},"SATS 1286.2011"]
[null,null,"Annex E"]
[{"$nulls":3},"FAILURE TO FULLY COMPLETE, DECLARE, SIGN & DATE THIS ANNEXURE C WILL RESULT IN THE BIDDER SCORING ZERO POINTS"]
[]
[null,null,"Local Content Declaration - Supporting Schedule to Annex C"]
[]
[null,"(E1)","Tender No.",null,"HOAC-VAR-52627",null,null,"Note: VAT to be excluded from all calculations"]
[null,"(E2)","Tender description: ",null,"SUPPLY AND  DELIVERY OF UNIFORM CLOTHING TO TRANSNET RAIL INFRASTRUCTURE MANAGER ON AN “AS AND WHEN REQUIRED BASIS” FOR A PERIOD OF SIXTY (60) MONTHS."]
[null,"(E3)","Designated products:",null,"Textile, Clothing, Leather and Footwear"]
[null,"(E4)","Tender Authority:",null,"TRANSNET RAIL INFRASTRUCTURE MANAGER"]
[null,"(E5)","Tendering Entity name:"]
[]
[]
[{"$nulls":3},"Local Products (Goods, Services and Works)","Description of items purchased",null,null,"Local suppliers","Value","% of LC"]
[{"$nulls":4},"(E6)",null,null,"(E7)","(E8)"]
[{"$nulls":4},"SUIT, RAINWEAR"]
[{"$nulls":4},"VEST, HIGH VISIBILITY"]
[{"$nulls":4},"VEST, HIGH VISIBILITY"]
[{"$nulls":4},"JACKET, WET WEATHER, PARKA"]
[{"$nulls":4},"RAIN SUIT UNISEX [RNC]"]
{"$rows_empty":7}
[{"$nulls":7},"(E9) Total local products (Goods, Services and Works)",{"$f":"SUM(I17:I28)","v":{"v":0,"d":"R 0"}}]
[]
[null,null,"(E10)","Manpower costs","( Tenderer's manpower cost)",{"$nulls":3},{"v":0,"d":"R 0"}]
[]
[null,null,"(E11)","Factory overheads","(Rental, depreciation & amortisation, utility costs, consumables etc.)",{"$nulls":3},{"v":0,"d":"R 0"}]
[]
[null,null,"(E12)","Administration overheads and mark-up",null,"(Marketing, insurance, financing, interest etc.)",null,null,{"v":0,"d":"R 0"}]
[]
[{"$nulls":7},"(E13)  Total local content",{"v":0,"d":"R 0"}]
[{"$nulls":7},"This total must correspond with Annex C  - C24"]
[]
[null,null,"Signature of tenderer "]
[]
[]
[]
[null,null,"Date: "]

{"sheet":"Annex E CAT 6","index":33,"n_rows":44,"n_cols":10,"rows_kept":44,"merged":[[2,2,2,8],[3,3,3,8],[5,2,5,9],[7,7,8,8],[14,4,14,6],[15,4,15,6],[16,4,16,6],[17,4,17,6],[18,4,18,6],[19,4,19,6],[20,4,20,6],[21,4,21,6],[22,4,22,6],[23,4,23,6],[24,4,24,6],[25,4,25,6],[26,4,26,6],[27,4,27,6],[37,7,37,8]]}
[]
[{"$nulls":8},"SATS 1286.2011"]
[null,null,"Annex E"]
[{"$nulls":3},"FAILURE TO FULLY COMPLETE, DECLARE, SIGN & DATE THIS ANNEXURE C WILL RESULT IN THE BIDDER SCORING ZERO POINTS"]
[]
[null,null,"Local Content Declaration - Supporting Schedule to Annex C"]
[]
[null,"(E1)","Tender No.",null,"HOAC-VAR-52627",null,null,"Note: VAT to be excluded from all calculations"]
[null,"(E2)","Tender description: ",null,"SUPPLY AND  DELIVERY OF UNIFORM CLOTHING TO TRANSNET RAIL INFRASTRUCTURE MANAGER ON AN “AS AND WHEN REQUIRED BASIS” FOR A PERIOD OF SIXTY (60) MONTHS."]
[null,"(E3)","Designated products:",null,"Textile, Clothing, Leather and Footwear"]
[null,"(E4)","Tender Authority:",null,"TRANSNET RAIL INFRASTRUCTURE MANAGER"]
[null,"(E5)","Tendering Entity name:"]
[]
[]
[{"$nulls":3},"Local Products (Goods, Services and Works)","Description of items purchased",null,null,"Local suppliers","Value","% of LC"]
[{"$nulls":4},"(E6)",null,null,"(E7)","(E8)"]
[{"$nulls":4},"PANTYHOSE, LADIES"]
{"$rows_empty":11}
[{"$nulls":7},"(E9) Total local products (Goods, Services and Works)",{"$f":"SUM(I17:I28)","v":{"v":0,"d":"R 0"}}]
[]
[null,null,"(E10)","Manpower costs","( Tenderer's manpower cost)",{"$nulls":3},{"v":0,"d":"R 0"}]
[]
[null,null,"(E11)","Factory overheads","(Rental, depreciation & amortisation, utility costs, consumables etc.)",{"$nulls":3},{"v":0,"d":"R 0"}]
[]
[null,null,"(E12)","Administration overheads and mark-up",null,"(Marketing, insurance, financing, interest etc.)",null,null,{"v":0,"d":"R 0"}]
[]
[{"$nulls":7},"(E13)  Total local content",{"v":0,"d":"R 0"}]
[{"$nulls":7},"This total must correspond with Annex C  - C24"]
[]
[null,null,"Signature of tenderer "]
[]
[]
[]
[null,null,"Date: "]

{"sheet":"Annex E CAT 7","index":34,"n_rows":44,"n_cols":10,"rows_kept":44,"merged":[[2,2,2,8],[3,3,3,8],[5,2,5,9],[7,7,8,8],[14,4,14,6],[15,4,15,6],[21,4,21,6],[22,4,22,6],[23,4,23,6],[24,4,24,6],[25,4,25,6],[26,4,26,6],[27,4,27,6],[37,7,37,8]]}
[]
[{"$nulls":8},"SATS 1286.2011"]
[null,null,"Annex E"]
[{"$nulls":3},"FAILURE TO FULLY COMPLETE, DECLARE, SIGN & DATE THIS ANNEXURE C WILL RESULT IN THE BIDDER SCORING ZERO POINTS"]
[]
[null,null,"Local Content Declaration - Supporting Schedule to Annex C"]
[]
[null,"(E1)","Tender No.",null,"HOAC-VAR-52627",null,null,"Note: VAT to be excluded from all calculations"]
[null,"(E2)","Tender description: ",null,"SUPPLY AND  DELIVERY OF UNIFORM CLOTHING TO TRANSNET RAIL INFRASTRUCTURE MANAGER ON AN “AS AND WHEN REQUIRED BASIS” FOR A PERIOD OF SIXTY (60) MONTHS."]
[null,"(E3)","Designated products:",null,"Textile, Clothing, Leather and Footwear"]
[null,"(E4)","Tender Authority:",null,"TRANSNET RAIL INFRASTRUCTURE MANAGER"]
[null,"(E5)","Tendering Entity name:"]
[]
[]
[{"$nulls":3},"Local Products (Goods, Services and Works)","Description of items purchased",null,null,"Local suppliers","Value","% of LC"]
[{"$nulls":4},"(E6)",null,null,"(E7)","(E8)"]
[{"$nulls":4},"SHOES, UTILITY (medium fit)"]
[{"$nulls":4},"SHOES, UTILITY (wide fit)"]
[{"$nulls":4},"SHOES, WOMENS"]
[{"$nulls":4},"SHOES,UTILITY, Male"]
[{"$nulls":4},"SHOES, WOMENS"]
{"$rows_empty":7}
[{"$nulls":7},"(E9) Total local products (Goods, Services and Works)",{"$f":"SUM(I17:I28)","v":{"v":0,"d":"R 0"}}]
[]
[null,null,"(E10)","Manpower costs","( Tenderer's manpower cost)",{"$nulls":3},{"v":0,"d":"R 0"}]
[]
[null,null,"(E11)","Factory overheads","(Rental, depreciation & amortisation, utility costs, consumables etc.)",{"$nulls":3},{"v":0,"d":"R 0"}]
[]
[null,null,"(E12)","Administration overheads and mark-up",null,"(Marketing, insurance, financing, interest etc.)",null,null,{"v":0,"d":"R 0"}]
[]
[{"$nulls":7},"(E13)  Total local content",{"v":0,"d":"R 0"}]
[{"$nulls":7},"This total must correspond with Annex C  - C24"]
[]
[null,null,"Signature of tenderer"]
[]
[]
[]
[null,null,"Date: "]

{"sheet":"Annex E CAT 8","index":35,"n_rows":44,"n_cols":10,"rows_kept":44,"merged":[[2,2,2,8],[3,3,3,8],[5,2,5,9],[7,7,8,8],[14,4,14,6],[15,4,15,6],[27,4,27,6],[37,7,37,8]]}
[]
[{"$nulls":8},"SATS 1286.2011"]
[null,null,"Annex E"]
[{"$nulls":3},"FAILURE TO FULLY COMPLETE, DECLARE, SIGN & DATE THIS ANNEXURE C WILL RESULT IN THE BIDDER SCORING ZERO POINTS"]
[]
[null,null,"Local Content Declaration - Supporting Schedule to Annex C"]
[]
[null,"(E1)","Tender No.",null,"HOAC-VAR-52627",null,null,"Note: VAT to be excluded from all calculations"]
[null,"(E2)","Tender description: ",null,"SUPPLY AND  DELIVERY OF UNIFORM CLOTHING TO TRANSNET RAIL INFRASTRUCTURE MANAGER ON AN “AS AND WHEN REQUIRED BASIS” FOR A PERIOD OF SIXTY (60) MONTHS."]
[null,"(E3)","Designated products:",null,"Textile, Clothing, Leather and Footwear"]
[null,"(E4)","Tender Authority:",null,"TRANSNET RAIL INFRASTRUCTURE MANAGER"]
[null,"(E5)","Tendering Entity name:"]
[]
[]
[{"$nulls":3},"Local Products (Goods, Services and Works)","Description of items purchased",null,null,"Local suppliers","Value","% of LC"]
[{"$nulls":4},"(E6)",null,null,"(E7)","(E8)"]
[{"$nulls":4},"INSIGNIA, GRADE, SHOULDER LOOP SLEEVE"]
[{"$nulls":4},"BADGE, IDENTIFICATION (Hazmat)"]
[{"$nulls":4},"INSIGNIA, GRADE, SHOULDER LOOP SLEEVE"]
[{"$nulls":4},"BADGE, METAL"]
[{"$nulls":4},"RUBBERISED EPAULETTES"]
[{"$nulls":4},"BADGE, NAME"]
[{"$nulls":4},"BADGE, CAP, HAT & BERET"]
[{"$nulls":4},"RING, SCARF"]
[{"$nulls":4},"RUBBERISED NAME BADGES"]
[{"$nulls":4},"LANYARDS, SINGLE CORD, Black"]
[{"$nulls":4},"WHISTLE, NICKLE PLAITED."]
[]
[{"$nulls":7},"(E9) Total local products (Goods, Services and Works)",{"$f":"SUM(I17:I28)","v":{"v":0,"d":"R 0"}}]
[]
[null,null,"(E10)","Manpower costs","( Tenderer's manpower cost)",{"$nulls":3},{"v":0,"d":"R 0"}]
[]
[null,null,"(E11)","Factory overheads","(Rental, depreciation & amortisation, utility costs, consumables etc.)",{"$nulls":3},{"v":0,"d":"R 0"}]
[]
[null,null,"(E12)","Administration overheads and mark-up",null,"(Marketing, insurance, financing, interest etc.)",null,null,{"v":0,"d":"R 0"}]
[]
[{"$nulls":7},"(E13)  Total local content",{"v":0,"d":"R 0"}]
[{"$nulls":7},"This total must correspond with Annex C  - C24"]
[]
[null,null,"Signature of tenderer "]
[]
[]
[]
[null,null,"Date: "]

{"sheet":"Annex E CAT 9","index":36,"n_rows":44,"n_cols":10,"rows_kept":44,"merged":[[2,2,2,8],[3,3,3,8],[5,2,5,9],[7,7,8,8],[14,4,14,6],[15,4,15,6],[21,4,21,6],[22,4,22,6],[23,4,23,6],[24,4,24,6],[25,4,25,6],[26,4,26,6],[27,4,27,6],[37,7,37,8]]}
[]
[{"$nulls":8},"SATS 1286.2011"]
[null,null,"Annex E"]
[{"$nulls":3},"FAILURE TO FULLY COMPLETE, DECLARE, SIGN & DATE THIS ANNEXURE C WILL RESULT IN THE BIDDER SCORING ZERO POINTS"]
[]
[null,null,"Local Content Declaration - Supporting Schedule to Annex C"]
[]
[null,"(E1)","Tender No.",null,"HOAC-VAR-52627",null,null,"Note: VAT to be excluded from all calculations"]
[null,"(E2)","Tender description: ",null,"SUPPLY AND  DELIVERY OF UNIFORM CLOTHING TO TRANSNET RAIL INFRASTRUCTURE MANAGER ON AN “AS AND WHEN REQUIRED BASIS” FOR A PERIOD OF SIXTY (60) MONTHS."]
[null,"(E3)","Designated products:",null,"Textile, Clothing, Leather and Footwear"]
[null,"(E4)","Tender Authority:",null,"TRANSNET RAIL INFRASTRUCTURE MANAGER"]
[null,"(E5)","Tendering Entity name:"]
[]
[]
[{"$nulls":3},"Local Products (Goods, Services and Works)","Description of items purchased",null,null,"Local suppliers","Value","% of LC"]
[{"$nulls":4},"(E6)",null,null,"(E7)","(E8)"]
[{"$nulls":4},"BELT TROUSERS"]
[{"$nulls":4},"BELT, TROUSERS"]
[{"$nulls":4},"BELT, TROUSERS"]
[{"$nulls":4},"BELT, TROUSERS, 50mm"]
[{"$nulls":4},"BELT, TROUSERS, 30mm"]
{"$rows_empty":7}
[{"$nulls":7},"(E9) Total local products (Goods, Services and Works)",{"$f":"SUM(I17:I28)","v":{"v":0,"d":"R 0"}}]
[]
[null,null,"(E10)","Manpower costs","( Tenderer's manpower cost)",{"$nulls":3},{"v":0,"d":"R 0"}]
[]
[null,null,"(E11)","Factory overheads","(Rental, depreciation & amortisation, utility costs, consumables etc.)",{"$nulls":3},{"v":0,"d":"R 0"}]
[]
[null,null,"(E12)","Administration overheads and mark-up",null,"(Marketing, insurance, financing, interest etc.)",null,null,{"v":0,"d":"R 0"}]
[]
[{"$nulls":7},"(E13)  Total local content",{"v":0,"d":"R 0"}]
[{"$nulls":7},"This total must correspond with Annex C  - C24"]
[]
[null,null,"Signature of tenderer "]
[]
[]
[]
[null,null,"Date: "]

{"sheet":"Annex E CAT 10","index":37,"n_rows":44,"n_cols":10,"rows_kept":44,"merged":[[2,2,2,8],[3,3,3,8],[5,2,5,9],[7,7,8,8],[14,4,14,6],[15,4,15,6],[18,4,18,6],[19,4,19,6],[20,4,20,6],[21,4,21,6],[22,4,22,6],[23,4,23,6],[24,4,24,6],[25,4,25,6],[26,4,26,6],[27,4,27,6],[37,7,37,8]]}
[]
[{"$nulls":8},"SATS 1286.2011"]
[null,null,"Annex E"]
[{"$nulls":3},"FAILURE TO FULLY COMPLETE, DECLARE, SIGN & DATE THIS ANNEXURE C WILL RESULT IN THE BIDDER SCORING ZERO POINTS"]
[]
[null,null,"Local Content Declaration - Supporting Schedule to Annex C"]
[]
[null,"(E1)","Tender No.",null,"HOAC-VAR-52627",null,null,"Note: VAT to be excluded from all calculations"]
[null,"(E2)","Tender description: ",null,"SUPPLY AND  DELIVERY OF UNIFORM CLOTHING TO TRANSNET RAIL INFRASTRUCTURE MANAGER ON AN “AS AND WHEN REQUIRED BASIS” FOR A PERIOD OF SIXTY (60) MONTHS."]
[null,"(E3)","Designated products:",null,"Textile, Clothing, Leather and Footwear"]
[null,"(E4)","Tender Authority:",null,"TRANSNET RAIL INFRASTRUCTURE MANAGER"]
[null,"(E5)","Tendering Entity name:"]
[]
[]
[{"$nulls":3},"Local Products (Goods, Services and Works)","Description of items purchased",null,null,"Local suppliers","Value","% of LC"]
[{"$nulls":4},"(E6)",null,null,"(E7)","(E8)"]
[{"$nulls":4},"BOOTS, COMBAT, Toe Cap"]
[{"$nulls":4},"BOOTS, SAFETY (Chukka) (Steel Toe Cap)"]
{"$rows_empty":10}
[{"$nulls":7},"(E9) Total local products (Goods, Services and Works)",{"$f":"SUM(I17:I28)","v":{"v":0,"d":"R 0"}}]
[]
[null,null,"(E10)","Manpower costs","( Tenderer's manpower cost)",{"$nulls":3},{"v":0,"d":"R 0"}]
[]
[null,null,"(E11)","Factory overheads","(Rental, depreciation & amortisation, utility costs, consumables etc.)",{"$nulls":3},{"v":0,"d":"R 0"}]
[]
[null,null,"(E12)","Administration overheads and mark-up",null,"(Marketing, insurance, financing, interest etc.)",null,null,{"v":0,"d":"R 0"}]
[]
[{"$nulls":7},"(E13)  Total local content",{"v":0,"d":"R 0"}]
[{"$nulls":7},"This total must correspond with Annex C  - C24"]
[]
[null,null,"Signature of tenderer"]
[]
[]
[]
[null,null,"Date: "]

{"sheet":"Annex E CAT 11","index":38,"n_rows":44,"n_cols":10,"rows_kept":44,"merged":[[2,2,2,8],[3,3,3,8],[5,2,5,9],[7,7,8,8],[14,4,14,6],[15,4,15,6],[21,4,21,6],[22,4,22,6],[23,4,23,6],[24,4,24,6],[25,4,25,6],[26,4,26,6],[27,4,27,6],[37,7,37,8]]}
[]
[{"$nulls":8},"SATS 1286.2011"]
[null,null,"Annex E"]
[{"$nulls":3},"FAILURE TO FULLY COMPLETE, DECLARE, SIGN & DATE THIS ANNEXURE C WILL RESULT IN THE BIDDER SCORING ZERO POINTS"]
[]
[null,null,"Local Content Declaration - Supporting Schedule to Annex C"]
[]
[null,"(E1)","Tender No.",null,"HOAC-VAR-52627",null,null,"Note: VAT to be excluded from all calculations"]
[null,"(E2)","Tender description: ",null,"SUPPLY AND  DELIVERY OF UNIFORM CLOTHING TO TRANSNET RAIL INFRASTRUCTURE MANAGER ON AN “AS AND WHEN REQUIRED BASIS” FOR A PERIOD OF SIXTY (60) MONTHS."]
[null,"(E3)","Designated products:",null,"Textile, Clothing, Leather and Footwear"]
[null,"(E4)","Tender Authority:",null,"TRANSNET RAIL INFRASTRUCTURE MANAGER"]
[null,"(E5)","Tendering Entity name:"]
[]
[]
[{"$nulls":3},"Local Products (Goods, Services and Works)","Description of items purchased",null,null,"Local suppliers","Value","% of LC"]
[{"$nulls":4},"(E6)",null,null,"(E7)","(E8)"]
[{"$nulls":4},"SWEATER, Jersey"]
[{"$nulls":4},"SWEATER, Pull Over"]
[{"$nulls":4},"CAP, COLD WEATHER"]
[{"$nulls":4},"GLOVES, UNISEX KNITTED"]
[{"$nulls":4},"SCARF, NECKWEAR, UNISEX KNITTED"]
{"$rows_empty":7}
[{"$nulls":7},"(E9) Total local products (Goods, Services and Works)",{"$f":"SUM(I17:I28)","v":{"v":0,"d":"R 0"}}]
[]
[null,null,"(E10)","Manpower costs","( Tenderer's manpower cost)",{"$nulls":3},{"v":0,"d":"R 0"}]
[]
[null,null,"(E11)","Factory overheads","(Rental, depreciation & amortisation, utility costs, consumables etc.)",{"$nulls":3},{"v":0,"d":"R 0"}]
[]
[null,null,"(E12)","Administration overheads and mark-up",null,"(Marketing, insurance, financing, interest etc.)",null,null,{"v":0,"d":"R 0"}]
[]
[{"$nulls":7},"(E13)  Total local content",{"v":0,"d":"R 0"}]
[{"$nulls":7},"This total must correspond with Annex C  - C24"]
[]
[null,null,"Signature of tenderer "]
[]
[]
[]
[null,null,"Date: "]

{"sheet":"Annex E CAT 12","index":39,"n_rows":44,"n_cols":10,"rows_kept":44,"merged":[[2,2,2,8],[3,3,3,8],[5,2,5,9],[7,7,8,8],[14,4,14,6],[15,4,15,6],[20,4,20,6],[21,4,21,6],[22,4,22,6],[23,4,23,6],[24,4,24,6],[25,4,25,6],[26,4,26,6],[27,4,27,6],[37,7,37,8]]}
[]
[{"$nulls":8},"SATS 1286.2011"]
[null,null,"Annex E"]
[{"$nulls":3},"FAILURE TO FULLY COMPLETE, DECLARE, SIGN & DATE THIS ANNEXURE C WILL RESULT IN THE BIDDER SCORING ZERO POINTS"]
[]
[null,null,"Local Content Declaration - Supporting Schedule to Annex C"]
[]
[null,"(E1)","Tender No.",null,"HOAC-VAR-52627",null,null,"Note: VAT to be excluded from all calculations"]
[null,"(E2)","Tender description: ",null,"SUPPLY AND  DELIVERY OF UNIFORM CLOTHING TO TRANSNET RAIL INFRASTRUCTURE MANAGER ON AN “AS AND WHEN REQUIRED BASIS” FOR A PERIOD OF SIXTY (60) MONTHS."]
[null,"(E3)","Designated products:",null,"Textile, Clothing, Leather and Footwear"]
[null,"(E4)","Tender Authority:",null,"TRANSNET RAIL INFRASTRUCTURE MANAGER"]
[null,"(E5)","Tendering Entity name:"]
[]
[]
[{"$nulls":3},"Local Products (Goods, Services and Works)","Description of items purchased",null,null,"Local suppliers","Value","% of LC"]
[{"$nulls":4},"(E6)",null,null,"(E7)","(E8)"]
[{"$nulls":4},"JACKET, MENS"]
[{"$nulls":4},"JACKET, WOMENS"]
[{"$nulls":4},"JACKET, MENS"]
[{"$nulls":4},"JACKET, WOMENS"]
{"$rows_empty":8}
[{"$nulls":7},"(E9) Total local products (Goods, Services and Works)",{"$f":"SUM(I17:I28)","v":{"v":0,"d":"R 0"}}]
[]
[null,null,"(E10)","Manpower costs","( Tenderer's manpower cost)",{"$nulls":3},{"v":0,"d":"R 0"}]
[]
[null,null,"(E11)","Factory overheads","(Rental, depreciation & amortisation, utility costs, consumables etc.)",{"$nulls":3},{"v":0,"d":"R 0"}]
[]
[null,null,"(E12)","Administration overheads and mark-up",null,"(Marketing, insurance, financing, interest etc.)",null,null,{"v":0,"d":"R 0"}]
[]
[{"$nulls":7},"(E13)  Total local content",{"v":0,"d":"R 0"}]
[{"$nulls":7},"This total must correspond with Annex C  - C24"]
[]
[null,null,"Signature of tenderer "]
[]
[]
[]
[null,null,"Date: "]

{"sheet":"Annex E CAT 13","index":40,"n_rows":55,"n_cols":10,"rows_kept":55,"merged":[[2,2,2,8],[3,3,3,8],[5,2,5,9],[7,7,8,8],[14,4,14,6],[15,4,15,6],[37,4,37,6],[38,4,38,6],[48,7,48,8]]}
[]
[{"$nulls":8},"SATS 1286.2011"]
[null,null,"Annex E"]
[{"$nulls":3},"FAILURE TO FULLY COMPLETE, DECLARE, SIGN & DATE THIS ANNEXURE C WILL RESULT IN THE BIDDER SCORING ZERO POINTS"]
[]
[null,null,"Local Content Declaration - Supporting Schedule to Annex C"]
[]
[null,"(E1)","Tender No.",null,"HOAC-VAR-52627",null,null,"Note: VAT to be excluded from all calculations"]
[null,"(E2)","Tender description: ",null,"SUPPLY AND  DELIVERY OF UNIFORM CLOTHING TO TRANSNET RAIL INFRASTRUCTURE MANAGER ON AN “AS AND WHEN REQUIRED BASIS” FOR A PERIOD OF SIXTY (60) MONTHS."]
[null,"(E3)","Designated products:",null,"Textile, Clothing, Leather and Footwear"]
[null,"(E4)","Tender Authority:",null,"TRANSNET RAIL INFRASTRUCTURE MANAGER"]
[null,"(E5)","Tendering Entity name:"]
[]
[]
[{"$nulls":3},"Local Products (Goods, Services and Works)","Description of items purchased",null,null,"Local suppliers","Value","% of LC"]
[{"$nulls":4},"(E6)",null,null,"(E7)","(E8)"]
[{"$nulls":4},"SHIRT UTILITY"]
[{"$nulls":4},"SHIRT UTILITY"]
[{"$nulls":4},"SHIRT UTILITY (Thermal)"]
[{"$nulls":4},"SHIRT UTILITY (Thermal)"]
[{"$nulls":4},"TROUSERS UTLTY (Thermal Underwear)"]
[{"$nulls":4},"TROUSERS, MENS (Combat)"]
[{"$nulls":4},"TROUSERS, WOMENS (COMBAT)"]
[{"$nulls":4},"MENS COMBAT SHIRTS SHORT SLEEVES"]
[{"$nulls":4},"MENS COMBAT SHIRTS LONG SLEEVES"]
[{"$nulls":4},"WOMENS COMBAT SHIRTS SHORT SLEEVES"]
[{"$nulls":4},"WOMENS COMBAT SHIRTS LONG SLEEVES"]
[{"$nulls":4},"TROUSERS UTLTY , Manager, Mens "]
[{"$nulls":4},"TROUSERS UTLTY, Step Out, Mens"]
[{"$nulls":4},"SLACKS, WOMEN'S, Navy"]
[{"$nulls":4},"SLACKS, WOMEN'S, Grey"]
[{"$nulls":4},"SKIRT, WOMENS, Pencil, Navy"]
[{"$nulls":4},"SKIRT, WOMENS, Pencil, Grey"]
[{"$nulls":4},"SHIRT, UTILITY, BUTTON UP NECK Male"]
[{"$nulls":4},"SHIRT, UTILITY, OPEN NECK Male"]
[{"$nulls":4},"SHIRT, UTILITY, BUTTON UP NECK Women"]
[{"$nulls":4},"SHIRT, UTILITY, BUTTON UP NECK Women"]
[]
[]
[{"$nulls":7},"(E9) Total local products (Goods, Services and Works)",{"$f":"SUM(I17:I39)","v":{"v":0,"d":"R 0"}}]
[]
[null,null,"(E10)","Manpower costs","( Tenderer's manpower cost)",{"$nulls":3},{"v":0,"d":"R 0"}]
[]
[null,null,"(E11)","Factory overheads","(Rental, depreciation & amortisation, utility costs, consumables etc.)",{"$nulls":3},{"v":0,"d":"R 0"}]
[]
[null,null,"(E12)","Administration overheads and mark-up",null,"(Marketing, insurance, financing, interest etc.)",null,null,{"v":0,"d":"R 0"}]
[]
[{"$nulls":7},"(E13)  Total local content",{"v":0,"d":"R 0"}]
[{"$nulls":7},"This total must correspond with Annex C  - C24"]
[]
[null,null,"Signature of tenderer "]
[]
[]
[]
[null,null,"Date: "]

{"sheet":"Annex E CAT 14","index":41,"n_rows":44,"n_cols":10,"rows_kept":44,"merged":[[2,2,2,8],[3,3,3,8],[5,2,5,9],[7,7,8,8],[14,4,14,6],[15,4,15,6],[18,4,18,6],[19,4,19,6],[20,4,20,6],[21,4,21,6],[22,4,22,6],[23,4,23,6],[24,4,24,6],[25,4,25,6],[26,4,26,6],[27,4,27,6],[37,7,37,8]]}
[]
[{"$nulls":8},"SATS 1286.2011"]
[null,null,"Annex E"]
[{"$nulls":3},"FAILURE TO FULLY COMPLETE, DECLARE, SIGN & DATE THIS ANNEXURE C WILL RESULT IN THE BIDDER SCORING ZERO POINTS"]
[]
[null,null,"Local Content Declaration - Supporting Schedule to Annex C"]
[]
[null,"(E1)","Tender No.",null,"HOAC-VAR-52627",null,null,"Note: VAT to be excluded from all calculations"]
[null,"(E2)","Tender description: ",null,"SUPPLY AND  DELIVERY OF UNIFORM CLOTHING TO TRANSNET RAIL INFRASTRUCTURE MANAGER ON AN “AS AND WHEN REQUIRED BASIS” FOR A PERIOD OF SIXTY (60) MONTHS."]
[null,"(E3)","Designated products:",null,"Textile, Clothing, Leather and Footwear"]
[null,"(E4)","Tender Authority:",null,"TRANSNET RAIL INFRASTRUCTURE MANAGER"]
[null,"(E5)","Tendering Entity name:"]
[]
[]
[{"$nulls":3},"Local Products (Goods, Services and Works)","Description of items purchased",null,null,"Local suppliers","Value","% of LC"]
[{"$nulls":4},"(E6)",null,null,"(E7)","(E8)"]
[{"$nulls":4},"NECKTIE, MENS"]
[{"$nulls":4},"SCARF: NECKWEAR WOMENS"]
{"$rows_empty":10}
[{"$nulls":7},"(E9) Total local products (Goods, Services and Works)",{"$f":"SUM(I17:I28)","v":{"v":0,"d":"R 0"}}]
[]
[null,null,"(E10)","Manpower costs","( Tenderer's manpower cost)",{"$nulls":3},{"v":0,"d":"R 0"}]
[]
[null,null,"(E11)","Factory overheads","(Rental, depreciation & amortisation, utility costs, consumables etc.)",{"$nulls":3},{"v":0,"d":"R 0"}]
[]
[null,null,"(E12)","Administration overheads and mark-up",null,"(Marketing, insurance, financing, interest etc.)",null,null,{"v":0,"d":"R 0"}]
[]
[{"$nulls":7},"(E13)  Total local content",{"v":0,"d":"R 0"}]
[{"$nulls":7},"This total must correspond with Annex C  - C24"]
[]
[null,null,"Signature of tenderer "]
[]
[]
[]
[null,null,"Date: "]